Workbook

Sheet Sheet1
A1: 城市 | B1: 年度 | C1: 地区生产总值（亿元） | D1: 第一产业占比 | E1: 第二产业占比 | F1: 第三产业占比 | G1: 人均地区生产总值（按常住人口）（万元） | H1: 人均地区生产总值（按户籍人口）（万元） | I1: 地方一般公共预算收入（亿元） | J1: 地方一般公共预算支出（亿元） | K1: 教育支出（亿元） | L1: 科学技术支出（亿元） | M1: 年末常住人口（万人） | N1: 年末户籍人口（万人） | O1: 行政区域土地面积（平方千米） | P1: 人口密度（人/平方千米） | Q1: 城镇化率（%）城镇人口/总人口 | R1: 年末耕地总资源 | S1: 建成区面积（平方千米） | T1: 固定资产投资（亿元） | U1: 房地产开发投资完成额 | V1: 住宅销售面积（万平方米） 实际为房地产销售面积 | W1: 房地产销售金额（亿元） | X1: 社会消费品零售总额（亿元） | Y1: 当年实际使用外资金额（亿美元） | Z1: 人均城市道路面积（交通节点数量） | AA1: 空气质量达标天数 空气优良天数 | AB1: 住宅销售面积（万平方米） | AC1: R&D | AD1: 工业用电情况（万千瓦时） | AE1: 规模以上工业企业数 | AF1: 规模以上工业企业总产值 | AG1: 工业用地（万元/㎡） | AH1: 商服用地（万元/㎡） | AI1: 住宅用地（万元/㎡） | AJ1: 其他用地（万元/㎡）
A2: 杭州市上城区 | B2: 2023 | C2: 2668.48 | D2: 0 | E2: 23.3 | F2: 76.7 | G2: 19.3298 | H2: =C2/N2 -> 29.54800133 | I2: 244.94 | J2: 155.32 | K2: =J2*0.282 -> 43.80024 | L2: 13.63 | M2: 139 | N2: 90.31 | O2: 122 | P2: =M2*10000/O2 -> 11393.44262 | Q2: 100 | R2: 0 | V2: 175.7 | W2: 825.89 | X2: 1106.95 | Y2: 11.93 | AA2: =365*0.851 -> 310.615 | AG2: 0.13 | AH2: 3.73 | AI2: 6.57 | AJ2: 0.91
A3: 杭州市上城区 | B3: 2022 | C3: 2560.53 | D3: 0 | E3: 26.2 | F3: 73.8 | G3: 18.9248 | H3: =C3/N3 -> 29.00464431 | I3: 210.56 | J3: 152.21 | K3: =J3*0.249 -> 37.90029 | L3: 11.85 | M3: 137.1 | N3: 88.28 | O3: 122 | P3: =M3*10000/O3 -> 11237.70492 | Q3: 100 | R3: 0 | U3: =U4*1.012 -> 0 | V3: 186.37 | W3: 904.26 | X3: 1073.09 | Y3: 10.9 | AA3: 295 | AB3: 144.93 | AD3: 131761 | AE3: 94 | AF3: 1001.1883 | AG3: 0.13 | AH3: 3.73 | AI3: 6.57 | AJ3: 0.91
A4: 杭州市上城区 | B4: 2021 | C4: 2417.51 | D4: 0 | E4: 25 | F4: 75 | G4: 18.1767 | H4: =C4/N4 -> 27.9125967 | I4: 201.38 | J4: 140.78 | K4: =J4*0.256 -> 36.03968 | L4: 8.1561 | M4: 133.5 | N4: 86.61 | O4: 122 | P4: =M4*10000/O4 -> 10942.62295 | Q4: 100 | R4: 0 | U4: =U5*0.881 -> 0 | V4: 208.28 | W4: 860.07 | X4: 976.86 | Y4: 6.27 | AB4: 176.6 | AD4: 186373 | AE4: 97 | AF4: 1071.528 | AG4: 0.12 | AH4: 5.92 | AI4: 6.15 | AJ4: 0
A5: 杭州市上城区 | B5: 2020 | C5: 1192.06 | D5: 0 | E5: 34.5 | F5: 65.5 | G5: =C5/M5 -> 33.32569192 | H5: =C5/N5 -> 37.1597884 | I5: 79.46 | J5: 52.43 | K5: 11.75 | L5: 2 | M5: 35.77 | N5: 32.0793 | O5: 26.06 | P5: 13760 | Q5: 100 | R5: 0 | T5: =T6*0.932 ->  | V5: 10.4 | X5: 333.4 | Y5: 9.0261 | AA5: 313 | AB5: 10.08 | AD5: 62179 | AE5: 37 | AF5: 734.9208 | AG5: 0.18 | AH5: 3.14 | AI5: 6.78 | AJ5: 0
A6: 杭州市上城区 | B6: 2019 | C6: 1171.41 | D6: 0 | E6: 34.1 | F6: 65.9 | G6: =C6/M6 -> 33.95391304 | H6: =C6/N6 -> 36.71682772 | I6: 85.13 | J6: 52.55 | K6: 10.61 | L6: 1.6 | M6: 34.5 | N6: 31.9039 | O6: 26.06 | P6: 13260 | Q6: 100 | R6: 0 | T6: =#REF!*1.011 ->  | U6: 108.9315 | V6: 20.7 | X6: 331.96 | Y6: 4.4942 | AA6: 252 | AB6: 15.2 | AD6: 48366 | AE6: 37 | AF6: 765.5947 | AG6: 0 | AH6: 5.11 | AI6: 5.2 | AJ6: 5.86
A7: 杭州市拱墅区 | B7: 2023 | C7: 2091.5 | D7: 0 | E7: 9.2 | F7: 90.8 | G7: 17.69 | H7: =C7/N7 -> 23.3765508 | I7: 199.18 | J7: 132.23 | K7: 35.7 | L7: 9.33 | M7: 118.8 | N7: 89.47 | O7: 119 | P7: =M7*10000/O7 -> 9983.193277 | Q7: 100 | T7: =T8*1.148 -> 843.206 | U7: =U8*1.32 -> 433.8461548 | V7: 189.3 | X7: 1363.9 | Y7: 7.45 | AA7: 308 | AG7: 0.27 | AH7: 1.72 | AI7: 5.4 | AJ7: 0
A8: 杭州市拱墅区 | B8: 2022 | C8: 2000.1 | D8: 0 | E8: 9.7 | F8: 90.3 | G8: =C8/M8 -> 16.99320306 | H8: =C8/N8 -> 22.56430505 | I8: 184.29 | J8: 134.2 | K8: 33.17 | L8: 8.1 | M8: 117.7 | N8: 88.64 | O8: 119 | P8: 9890.756303 | Q8: 100 | R8: 57 | T8: 734.5 | U8: =U9*1.114 -> 328.6713294 | V8: 180 | X8: 1312.9 | Y8: 2.71 | AA8: 304 | AD8: 25395.02 | AE8: 97 | AF8: 299.4529 | AG8: 0.11 | AH8: 1.97 | AI8: 5.48 | AJ8: 0
A9: 杭州市拱墅区 | B9: 2021 | C9: 1949.8 | D9: 0 | E9: 9.8 | F9: 90.2 | G9: =C9/M9 -> 17.02882096 | H9: =C9/N9 -> 22.23768248 | I9: 179.54 | J9: 118.79 | K9: 30.84 | L9: 7.05 | M9: 114.5 | N9: 87.68 | O9: 119 | P9: 9621.848739 | Q9: 100 | R9: 58 | T9: 655.2 | U9: =U10*1.035 -> 295.0371 | V9: 206.36 | X9: 1273.38 | Y9: 8.63 | AA9: 321 | AE9: 88 | AF9: 278.1977 | AG9: 0.3 | AH9: 2.33 | AI9: 5.49 | AJ9: 1.32
A10: 杭州市拱墅区 | B10: 2020 | C10: 668.6 | D10: 0 | E10: 18.8 | F10: 81.2 | G10: =C10/M10 -> 10.51257862 | H10: =C10/N10 -> 16.15174816 | I10: 86.73 | J10: 47.43 | K10: 12.06 | L10: 2.89 | M10: 63.6 | N10: 41.3949 | O10: 69 | P10: 9189 | Q10: 100 | R10: 54 | T10: =T11*0.874 ->  | U10: 285.06 | V10: =V11*0.737 ->  | X10: 609 | Y10: 8.12 | AA10: 334 | AE10: 78 | AF10: 259.8867 | AG10: 0.25 | AH10: 1.42 | AI10: 5.71 | AJ10: 0.29
A11: 杭州市拱墅区 | B11: 2019 | C11: 662.16 | D11: 0 | E11: 21.1 | F11: 78.9 | G11: =C11/M11 -> 11.42443064 | H11: =C11/N11 -> 16.68754206 | I11: 91.19 | J11: 42.07 | K11: 10.29 | L11: 1.96 | M11: 57.96 | N11: 39.6799 | O11: 69 | P11: 8366 | Q11: 100 | T11: =#REF!*1.258 ->  | U11: =U10/0.897 -> 317.7926421 | V11: =#REF!*1.225 ->  | X11: 620.73 | Y11: 6.04 | AA11: 287 | AE11: 77 | AF11: 281.8251 | AG11: 0.26 | AH11: 3.48 | AI11: 0 | AJ11: 0.38
A12: 杭州市西湖区 | B12: 2023 | C12: 2087.4 | D12: 0.2 | E12: 6.9 | F12: 92.9 | G12: 17.86 | H12: =C12/N12 -> 25.58088235 | I12: 233.8 | J12: 169.3 | K12: 57.4 | M12: 117.1 | N12: 81.6 | O12: 312.43 | P12: 3749 | Q12: 97.5 | R12: 2123 | S12: 10468 | T12: 555.2 | V12: 119.4 | W12: 391.7 | X12: 906.3 | Y12: 4 | AA12: 308 | AC12: 85.86 | AF12: 343.2 | AG12: 0.14 | AH12: 1.45 | AI12: 3.1 | AJ12: 0
A13: 杭州市西湖区 | B13: 2022 | C13: 1970.1 | D13: 0.16 | E13: 7.81 | F13: 92.03 | G13: 17.2438 | H13: 24.6013 | I13: 233.5 | J13: 149.8 | K13: 35.7 | M13: 116.7 | N13: 80.5 | O13: 312.43 | P13: =M13*10000/O13 -> 3735.236693 | Q13: 97.4 | R13: 2123 | S13: 10448 | T13: 484 | V13: 67.6 | W13: 217.4 | X13: 845.7 | Y13: 7.01 | AA13: 304 | AC13: 81 | AE13: 154 | AF13: 394.7927 | AG13: 0.13 | AH13: 1.87 | AI13: 3.72 | AJ13: 0
A14: 杭州市西湖区 | B14: 2021 | C14: 1904.2 | D14: 0.16 | E14: 7.56 | F14: 92.28 | G14: 17.2405 | H14: 24.2582 | I14: 175.7 | J14: 127 | K14: 45.4 | M14: 111.8 | N14: 79.6 | O14: 312.43 | P14: =M14*10000/O14 -> 3578.401562 | Q14: 97.1 | R14: 2112 | S14: 10394 | T14: 472.1 | V14: 91.8 | W14: 314.1 | X14: 787.6 | Y14: 8.3 | AA14: 321 | AC14: 68.55 | AE14: 151 | AF14: 379.2655 | AG14: 0.12 | AH14: 3.25 | AI14: 3.11 | AJ14: 0
A15: 杭州市西湖区 | B15: 2020 | C15: 1587.6 | D15: 0.19 | E15: 7.36 | F15: 92.45 | G15: 14.7819 | H15: 20.5128 | I15: 162 | J15: 190.6 | K15: 27.7 | M15: 109.1 | N15: 77.4 | O15: 309 | P15: 3603 | Q15: 97 | R15: 2133 | S15: 10381 | T15: 468.9 | V15: 58.4 | W15: 204.8 | X15: 689.7 | Y15: 10.1 | AA15: 334 | AC15: 67.7 | AE15: 134 | AF15: 297.6682 | AG15: 0.11 | AH15: 1.43 | AI15: 2.34 | AJ15: 1.25
A16: 杭州市西湖区 | B16: 2019 | C16: 1415.83 | D16: 0.18 | E16: 8.76 | F16: 91.06 | G16: 16.0161 | H16: 19.2725 | I16: 150.64 | J16: 93.01 | K16: 20.36 | M16: 90.8 | N16: 74.9 | O16: 309 | P16: 3031 | R16: 2164 | S16: 10347 | T16: 457.6 | V16: 54.66 | W16: 183.28 | X16: 711.7 | Y16: 7.02 | AA16: 287 | AE16: 123 | AF16: 2714.6058 | AG16: 0.31 | AH16: 1.89 | AI16: 0 | AJ16: 0.1
A17: 杭州市萧山区 | B17: 2023 | C17: 2230.69 | D17: 2.6 | E17: 36.9 | F17: 60.5 | G17: 10.4974 | H17: =C17/N17 -> 17.31095763 | I17: 332 | J17: 328.16 | K17: 68.9 | M17: 214 | N17: 128.86 | O17: 931 | P17: =M17*10000/O17 -> 2298.603652 | Q17: 91.3 | R17: 28575 | S17: 132.6 | T17: 1589.25 | U17: 940.25 | V17: 250.25 | X17: 1006.21 | Y17: 53.16 | AA17: 308 | AD17: 135.86 | AG17: 0.09 | AH17: 1.96 | AI17: 3.71 | AJ17: 0.11
A18: 杭州市萧山区 | B18: 2022 | C18: 2063.95 | D18: 2.9 | E18: 38.8 | F18: 58.3 | G18: 9.9085 | H18: 16.35718814 | I18: 318.31 | J18: 343.13 | K18: 70.18 | M18: 211 | N18: 126.18 | O18: 931 | P18: 2266 | Q18: 81.1 | R18: 28575 | S18: 128.32 | T18: 1510.56 | U18: 862.53 | V18: 276.5 | X18: 905.68 | Y18: 10.6032 | AA18: 304 | AB18: 223.9564 | AD18: 1308339 | AE18: 1626 | AF18: 3027.7121 | AG18: 0.08 | AH18: 1.43 | AI18: 2.63 | AJ18: 0
A19: 杭州市萧山区 | B19: 2021 | C19: 2011.62 | D19: 2.9 | E19: 38.5 | F19: 58.6 | G19: 9.9228 | H19: 16.22143376 | I19: 343.03 | J19: 324.23 | K19: 62.63 | L19: 17.4928 | M19: 205.6 | N19: 124.01 | O19: 931 | P19: 2208 | Q19: 80.9 | R19: 28759 | S19: 125.23 | T19: 1372.1 | U19: 786.72 | V19: 488.04 | X19: 813.43 | Y19: 8.8588 | AA19: 321 | AB19: 419.2273 | AD19: 1404376 | AE19: 1616 | AF19: 2979.0515 | AG19: 0.07 | AH19: 1.24 | AI19: 3.65 | AJ19: 0.97
A20: 杭州市萧山区 | B20: 2020 | C20: 1828.47 | D20: 3.2 | E20: 37.9 | F20: 58.9 | G20: 9.2395 | H20: 15.23 | I20: 300.03 | J20: 275.65 | K20: =K19/1.102 -> 56.83303085 | L20: 14.5631 | M20: 201.6 | N20: 121.2012 | O20: 931 | P20: 2165.41 | Q20: 80.8 | R20: 29109 | S20: 120.73 | T20: =T19/1.13 -> 1214.247788 | U20: 734.53 | V20: 336.77 | X20: 719.97 | Y20: 8.4151 | AA20: 334 | AB20: 297.4659 | AD20: 1290989 | AE20: 1480 | AF20: 2504.2895 | AG20: 0.07 | AH20: 1.28 | AI20: 3.63 | AJ20: 0.29
A21: 杭州市萧山区 | B21: 2019 | C21: 1847.66 | D21: 3.2 | E21: 41.5 | F21: 55.3 | G21: 9.7167 | H21: 15.7 | I21: 267.66 | J21: 275.43 | K21: 51.91 | L21: 9.9666 | M21: 194.5 | N21: 118.9323 | O21: 931 | P21: =M21*10000/O21 -> 2089.15145 | Q21: 80.79 | R21: 29728 | S21: 116.05 | T21: 1076.4557 | U21: 674.01 | V21: 270.9 | X21: 771.7693 | Y21: 9.2374 | AA21: 287 | AB21: 238.7946 | AC21: 54.51 | AD21: 1355161 | AE21: 1429 | AF21: 2743.51 | AG21: 0.07 | AH21: 2.7 | AI21: 3.72 | AJ21: 0
A22: 杭州市余杭区 | B22: 2023 | C22: 2936.43 | D22: 1.4 | E22: 11.2 | F22: 87.4 | I22: 416.68 | J22: 351.38 | K22: =J22*0.158 -> 55.51804 | M22: 140.5 | O22: 942 | Q22: 74.6 | T22: =T23*1.076 -> 0 | U22: =U23*1.317 -> 488.6395299 | V22: 239.1 | X22: 826.33 | Y22: 8.9 | AA22: =365*0.849 -> 309.885 | AB22: =AB23*1.074 -> 214.8 | AC22: =C22*0.0455 -> 133.607565 | AG22: 0.12 | AH22: 1.43 | AI22: 3.27 | AJ22: 0.22
A23: 杭州市余杭区 | B23: 2022 | C23: 2651.25 | D23: 1.6 | E23: 12.8 | F23: 85.6 | I23: 352.93 | J23: 334.49 | K23: =J23*0.151 -> 50.50799 | M23: 136.4 | N23: 72.91 | O23: 942 | Q23: 74.1 | R23: 17556 | T23: =T24*1.097 -> 0 | U23: 371.0247 | V23: 220.7 | W23: 681.1 | X23: 801.1 | Y23: 10.17 | AA23: 306 | AB23: 200 | AC23: 112.9 | AE23: 754 | AF23: 1033.0147 | AG23: 0.11 | AH23: 1.38 | AI23: 2.97 | AJ23: 1.01
A24: 杭州市余杭区 | B24: 2021 | C24: 2502.2 | D24: 1.6 | E24: 13.5 | F24: 84.9 | I24: 375.69 | J24: 335.61 | K24: =J24*0.125 -> 41.95125 | N24: 70.14 | O24: 942 | R24: 17214 | V24: 183.1 | W24: 669.5 | X24: 676.29 | Y24: 11.51 | AA24: 300 | AB24: 183.1 | AE24: 712 | AF24: 1036.6297 | AG24: 0.11 | AH24: 2.89 | AI24: 1.95 | AJ24: 0.09
A25: 杭州市余杭区 | B25: 2020 | C25: 3051.61 | D25: 1.7 | E25: 22.2 | F25: 76.1 | I25: 441.06 | J25: 413.64 | N25: 121.9 | O25: 1228 | P25: 1965 | R25: 17439 | T25: =T26*1.076 ->  | U25: =U26/0.956 ->  | V25: 418.3 | W25: 1091.1 | X25: 822.54 | Y25: 15.78 | AA25: 313 | AB25: 368.9 | AE25: 1277 | AF25: 2093.5233 | AG25: 0.23 | AH25: 1.36 | AI25: 2.66 | AJ25: 0.32
A26: 杭州市余杭区 | B26: 2019 | C26: 2824.02 | D26: 1.9 | E26: 23.1 | F26: 75 | H26: 24.99 | I26: 391.45 | J26: 376.73 | N26: 116.18 | O26: 1228 | P26: 1540 | R26: 17806 | T26: =#REF!*1.074 ->  | U26: =#REF!*1.067 ->  | V26: 392.8 | W26: 922.2 | X26: =X25/1.085 -> 758.1013825 | Y26: 10.52 | AA26: =365*(0.855-0.148) -> 258.055 | AB26: 344.5 | AE26: 1203 | AF26: 1925.8869 | AG26: 0.16 | AH26: 0.69 | AI26: 4.43 | AJ26: 0.51
A27: 杭州市富阳区 | B27: 2023 | C27: 960.9 | D27: 5.5 | E27: 42.2 | F27: 52.3 | G27: =C27/M27 -> 11.21236873 | H27: 13.7335 | I27: 100.5 | J27: 137.6 | L27: 8.7 | M27: 85.7 | N27: 70.1432 | O27: 1821 | T27: =T28*1.101 -> 723.2593413 | U27: =U28*1.19 -> 303.070985 | V27: 83 | W27: 162.5 | X27: 444.4 | Y27: 1.8536 | AA27: 341 | AB27: 63.5 | AE27: 764 | AG27: 0.07 | AH27: 0.81 | AI27: 1.36 | AJ27: 0.58
A28: 杭州市富阳区 | B28: 2022 | C28: 921.3 | D28: 5.5 | E28: 43.9 | F28: 50.6 | G28: 10.8568 | H28: 13.1734 | I28: 91.7 | J28: 135.7 | K28: 24.9926 | L28: 7.48 | M28: 85.1 | N28: 69.7888 | O28: 1821 | P28: 467 | R28: 16664 | T28: 656.9113 | U28: 254.6815 | V28: 61.4 | W28: =W27/1.151 -> 141.1815812 | X28: 438.2 | Y28: 3.5169 | AA28: 340 | AB28: 56.7 | AC28: =C28*0.0375 -> 34.54875 | AD28: 419700 | AE28: 725 | AF28: 1499.8034 | AG28: 0.06 | AH28: 0.79 | AI28: 1.54 | AJ28: 0.16
A29: 杭州市富阳区 | B29: 2021 | C29: 878.2 | D29: 5.7 | E29: 44 | F29: 50.3 | G29: 10.505 | H29: 12.6725 | I29: 105 | J29: 117.998 | K29: 23.9644 | L29: 6.5068 | M29: 83.9 | N29: 69.49 | O29: 1821 | P29: 461 | R29: 16049 | T29: 561.6841 | U29: 238.1489 | V29: 176.4671 | W29: 391.5195 | X29: 417.4 | Y29: 3.3897 | AA29: 337 | AB29: 164.6491 | AC29: =C29*0.036 -> 31.6152 | AD29: 445100 | AE29: 690 | AF29: 1418.7201 | AG29: 0.07 | AH29: 0.53 | AI29: 2.34 | AJ29: 0.29
A30: 杭州市富阳区 | B30: 2020 | C30: 807.6 | D30: 6.2 | E30: 44.3 | F30: 49.5 | G30: 9.7654 | H30: 11.7112 | I30: 90.1 | J30: 102.515 | K30: 23.7423 | L30: 5.639 | M30: 83.3 | N30: 69.11 | O30: 1821 | P30: 457 | R30: 17439 | T30: 412.3077 | U30: 184.5175 | V30: 163.4126 | W30: 339.8082 | X30: 382.1013 | Y30: 3.108 | AA30: 352 | AB30: 146.1266 | AC30: =C30*0.035 -> 28.266 | AD30: 470177 | AE30: 616 | AF30: 1155.4518 | AG30: 0.07 | AH30: 0.6 | AI30: 2.08 | AJ30: 0.27
A31: 杭州市富阳区 | B31: 2019 | C31: 800.4 | D31: 6.2 | E31: 45.2 | F31: 48.9 | G31: 9.8568 | H31: 11.6713 | I31: 80 | J31: 105.5038 | K31: 21.8846 | L31: 5.6338 | M31: 82.1 | N31: 68.81 | O31: 1821 | P31: 409 | R31: 15453 | T31: 315.5029 | U31: 131.1502 | V31: 131.0317 | W31: 244.6885 | X31: 379.7291 | Y31: 3.1747 | AA31: 336 | AB31: 113.6544 | AD31: 586414 | AE31: 632 | AF31: 1334.3676 | AG31: 0.06 | AH31: 1.39 | AI31: 0 | AJ31: 0.14
A32: 杭州市临安区 | B32: 2023 | C32: 686.45 | D32: 6.9 | E32: 49.4 | F32: 43.7 | G32: 10.5608 | H32: =C32/N32 -> 12.58617528 | I32: 87.6 | J32: 105.68 | K32: 20.1 | M32: 65.2 | N32: 54.54 | O32: 3119 | P32: 190 | Q32: 61.2 | T32: =T33*0.682 ->  | U32: =U33*0.504 -> 160.47864 | V32: 55.18 | W32: 98.61 | X32: 246.18 | Y32: 2.2 | AA32: 328 | AC32: =C32*0.0356 -> 24.43762 | AG32: 0.08 | AH32: 0.55 | AI32: 1.09 | AJ32: 0.12
A33: 杭州市临安区 | B33: 2022 | C33: 672.34 | D33: 7 | E33: 50.7 | F33: 42.3 | G33: 10.4239 | H33: =C33/N33 -> 12.38195212 | I33: 83.99 | J33: 106.18 | K33: =K32/1.052 -> 19.10646388 | L33: 4.94 | M33: 64.8 | N33: 54.3 | O33: 3119 | P33: =M33*10000/O33 -> 207.7588971 | R33: 12776 | T33: =T34*1.07 ->  | U33: 318.41 | V33: 79.7 | W33: 155.55 | X33: 224.28 | Y33: 2.02 | AA33: 329 | AC33: =C33*0.0356 -> 23.935304 | AE33: 733 | AF33: 1306.4109 | AG33: 0.07 | AH33: 0.52 | AI33: 1.66 | AJ33: 0
A34: 杭州市临安区 | B34: 2021 | C34: 658.35 | D34: 6.9 | E34: 50.4 | F34: 42.7 | G34: =C34/M34 -> 10.2546729 | H34: 12.1638 | I34: 90.39 | J34: 103.7 | L34: 4.23 | M34: 64.2 | N34: 54.22 | O34: 3119 | P34: =M34*10000/O34 -> 205.8352036 | R34: 12083 | T34: =T35*1.146 ->  | U34: 313.51 | V34: 230.5 | W34: 484.81 | X34: 212.68 | Y34: 2.63 | AA34: 346 | AC34: =C34*0.0334 -> 21.98889 | AE34: 708 | AF34: 1245.4624 | AG34: 0.07 | AH34: 0.3 | AI34: 2.06 | AJ34: 0.18
A35: 杭州市临安区 | B35: 2020 | C35: 600.41 | D35: 7.7 | E35: 46.6 | F35: 45.7 | G35: =C35/M35 -> 9.455275591 | H35: 11.121 | I35: 68.56 | J35: 90.47 | L35: 3.62 | M35: =M34-0.7 -> 63.5 | N35: 54.03 | O35: 3119 | P35: 204 | R35: 11378 | T35: =T36*1.245 ->  | U35: 278.01 | V35: 268.87 | W35: 520.45 | X35: 190.92 | Y35: 1.88 | AA35: 350 | AC35: =C35*0.0342 -> 20.534022 | AE35: 656 | AF35: 996.1411 | AG35: 0.06 | AH35: 0.2 | AI35: 1.85 | AJ35: 0.14
A36: 杭州市临安区 | B36: 2019 | C36: 572.94 | D36: 8 | E36: 44.9 | F36: 47.1 | G36: =C36/M36 -> 9.613087248 | H36: 10.6389 | I36: 61.16 | J36: 85.62 | L36: 5.06 | M36: 59.6 | N36: 53.95 | O36: 3119 | P36: 191 | R36: 11456 | T36: =#REF!*1.302 ->  | U36: 191.53 | V36: 218 | W36: 372.02 | X36: =X35/0.93 -> 205.2903226 | Y36: 2.01 | AA36: 341 | AC36: =C36*0.0289 -> 16.557966 | AE36: 607 | AF36: 886.8494 | AG36: 0.06 | AH36: 0.38 | AI36: 1.55 | AJ36: 0.15
A37: 杭州市桐庐县 | B37: 2023 | C37: 469.23 | D37: 6.1 | E37: 45.8 | F37: 48.1 | H37: 11.2041 | I37: 45.03 | J37: 72.8 | K37: 21.8 | L37: 5.16 | M37: 45.9 | N37: 41.83 | O37: 1829 | P37: =M37*10000/O37 -> 250.956807 | Q37: =227231*100/418326 -> 54.31911954 | T37: =T38*1.118 ->  | U37: 47.87 | V37: 22.94 | W37: 36.32 | X37: 173.85 | Y37: 0.92 | AA37: 340 | AB37: 20.87 | AE37: 407 | AF37: 581.72 | AG37: 0.04 | AH37: 0.42 | AI37: 0.71 | AJ37: 0.45
A38: 杭州市桐庐县 | B38: 2022 | C38: 441.51 | D38: 6.2 | E38: 47.4 | F38: 46.4 | H38: 10.2901 | I38: 41.49 | J38: 75.17 | K38: 21.21 | L38: 4.47 | M38: 45.8 | N38: 41.93 | O38: 1829 | P38: 250.4100601 | Q38: =226945*100/419276 -> 54.12782988 | R38: 11772 | T38: =T39*1.181 ->  | U38: 62.2 | V38: 30.66 | W38: 51.13 | X38: 166.99 | Y38: 1.93 | AA38: 340 | AB38: 29.67 | AC38: 10.79 | AE38: 397 | AF38: 590.6063 | AG38: 0.04 | AH38: 0.23 | AI38: 0.76 | AJ38: 0.13
A39: 杭州市桐庐县 | B39: 2021 | C39: 414.9043 | D39: 6.4 | E39: 46.4 | F39: 47.2 | G39: 9.1288 | H39: 9.8971 | I39: 38.3973 | J39: 61.2469 | K39: 17.1807 | L39: 3.6297 | M39: 45.5 | N39: 41.9217 | O39: 1829 | P39: 248.7698196 | Q39: =225842*100/419217 -> 53.87233819 | R39: 11371 | T39: =T40*1.295 ->  | U39: 59.1767 | V39: 46.97 | W39: 74.48 | X39: 158.6157 | Y39: 2.59 | AA39: 354 | AB39: 42.06 | AC39: 9.39 | AD39: 168964 | AE39: 386 | AF39: 521.203 | AG39: 0.06 | AH39: 0.25 | AI39: 1.34 | AJ39: 0.1
A40: 杭州市桐庐县 | B40: 2020 | C40: 371.7727 | D40: 6.8 | E40: 44.7 | F40: 48.5 | G40: 8.2342 | H40: 8.8726 | I40: 34.2245 | J40: 56.4082 | K40: 15.0977 | L40: 3.0285 | M40: 45.4 | N40: 41.922 | O40: 1829 | P40: 248 | Q40: =219669*100/419220 -> 52.39945613 | R40: 11159 | T40: =T41*1.234 ->  | U40: 36.9779 | V40: 39.88 | W40: 67.07 | X40: 137.4378 | Y40: 1.42 | AA40: 359 | AB40: 35.27 | AC40: 7.74 | AD40: 149698 | AE40: 355 | AF40: 439.3675 | AG40: 0.05 | AH40: 0.38 | AI40: 0.99 | AJ40: 0.11
A41: 杭州市桐庐县 | B41: 2019 | C41: 379.02 | D41: 6.6 | E41: 45 | F41: 48.4 | G41: 8.5174 | H41: 9.0678 | I41: 33.77 | J41: 50.2 | K41: 13.04 | L41: 2.67 | M41: 44.9 | N41: 41.8803 | O41: 1829 | P41: 238 | Q41: =212186*100/418803 -> 50.66487107 | R41: 11246 | T41: =#REF!*1.187 ->  | U41: =U40*0.776 -> 28.6948504 | V41: 36.3 | W41: 57.57 | X41: 145.8 | Y41: 1.7 | AA41: 348 | AB41: 27.68 | AD41: 153725 | AE41: 324 | AF41: 429.1999 | AG41: 0.04 | AH41: 0.19 | AI41: 1.13 | AJ41: 0.12
A42: 杭州市淳安县 | B42: 2023 | C42: 280.49 | D42: 15.8 | E42: 27.1 | F42: 57.1 | G42: 8.684 | H42: =C42/N42 -> 6.276615027 | I42: 26.99 | J42: 89.41 | K42: 14.74 | M42: 32.1 | N42: 44.6881 | O42: 4427 | P42: =M42*10000/O42 -> 72.50960018 | Q42: 52.3 | T42: =T43*1.107 ->  | U42: =U43*0.787 -> 30.13423 | V42: 20.13 | W42: 23.9 | X42: 109.42 | Y42: 0.1216 | AA42: 355 | AF42: 123.81 | AG42: 0.04 | AH42: 0.18 | AI42: 0 | AJ42: 0.13
A43: 杭州市淳安县 | B43: 2022 | C43: 269.51 | D43: 15.7 | E43: 26.5 | F43: 57.8 | G43: 8.2545 | H43: 5.9692 | I43: 23.92 | J43: 80.71 | K43: 11.84 | L43: 1.4978 | M43: 32.5 | N43: 45.0242 | O43: 4427 | P43: 73.4131466 | R43: 15311 | T43: =T44*1.152 ->  | U43: 38.29 | V43: 25.57 | W43: 32.71 | X43: 94.04 | Y43: 0.6063 | AA43: 359 | AB43: 21.81 | AD43: 68680 | AE43: 92 | AF43: 115.3301 | AG43: 0.05 | AH43: 0.07 | AI43: 0.78 | AJ43: 0.13
A44: 杭州市淳安县 | B44: 2021 | C44: 255.17 | D44: 15.8 | E44: 25 | F44: 59.2 | G44: 7.8833 | H44: 5.6983 | I44: 25.94 | J44: 77.37 | K44: 10.28 | L44: 1.2852 | M44: 32.8 | N44: 45.2763 | O44: 4427 | P44: 74.09080642 | R44: 15009 | T44: =T45*0.852 ->  | U44: 43.51 | V44: 32.11 | W44: 43.9 | X44: 90.03 | Y44: 0.3326 | AA44: 356 | AB44: 29.11 | AD44: 66858 | AE44: 97 | AF44: 106.0717 | AG44: 0.04 | AH44: 0.18 | AI44: 0.73 | AJ44: 0.13
A45: 杭州市淳安县 | B45: 2020 | C45: 240.34 | D45: 38.34 | E45: 63 | F45: 139 | G45: 7.3026 | H45: 5.2604 | I45: 22.77 | J45: 76.68 | K45: 9.47 | L45: 1.1163 | M45: 32.9 | N45: 45.616 | O45: 4418 | P45: 74 | R45: 14952 | T45: =T46*0.926 ->  | U45: 36.45 | V45: 31.79 | W45: 43.43 | X45: 83.74 | Y45: 0.111 | AA45: 351 | AB45: 29.37 | AD45: 63895.6 | AE45: 83 | AF45: 85.0108 | AG45: 0.03 | AH45: 0.08 | AI45: 0.61 | AJ45: 0.09
A46: 杭州市淳安县 | B46: 2019 | C46: 256.13 | D46: 38.14 | E46: 78.16 | F46: 139.83 | G46: 7.7263 | H46: 5.5781 | I46: 21.0871 | J46: 68.8654 | K46: 8.12 | L46: 1.0952 | M46: 33 | N46: 45.87 | O46: 4418 | P46: 81 | R46: 15097 | T46: =#REF!*0.922 ->  | U46: 25.79 | V46: 25.33 | W46: 36.51 | X46: 83.99 | Y46: 0.2003 | AA46: 334 | AB46: 24.48 | AD46: 71047.88 | AE46: 88 | AF46: 109.9047 | AG46: 0.03 | AH46: 0.2 | AI46: 0.73 | AJ46: 0.04
A47: 杭州市建德市 | B47: 2023 | C47: 450.11 | D47: 8.8 | E47: 47.5 | F47: 43.7 | G47: =C47/M47 -> 10.16049661 | H47: 8.9307 | I47: 47.59 | J47: 87.42 | L47: =L48*1.18 -> 4.172716 | M47: 44.3 | N47: 50.2521 | O47: 2314.42 | P47: =M47*10000/O47 -> 191.4086467 | Q47: 54.3 | R47: 19266 | S47: 10.6 | T47: =T48*1.161 ->  | U47: =U48*0.618 ->  | V47: 9.29 | W47: 13.06 | X47: 136.01 | Y47: 0.55 | AA47: 354 | AB47: 8.52 | AG47: 0.04 | AH47: 0.17 | AI47: 0.23 | AJ47: 0.3
A48: 杭州市建德市 | B48: 2022 | C48: 433.54 | D48: 9.4 | E48: 50.7 | F48: 39.9 | G48: 9.7425 | H48: 8.5596 | I48: 41.17 | J48: 78.55 | K48: 12.4124 | L48: 3.5362 | M48: 44.6 | N48: 50.5478 | O48: 2314.42 | P48: =M48*10000/O48 -> 192.7048677 | Q48: =Q47-0.8 -> 53.5 | R48: 19266 | S48: 10.6 | T48: =T49*0.823 ->  | U48: =U49*0.904 ->  | V48: 19.27 | W48: 21.37 | X48: 129 | Y48: 1.4 | AA48: 349 | AB48: 17.27 | AE48: 415 | AF48: 696.2602 | AG48: 0.04 | AH48: 0.44 | AI48: 2.27 | AJ48: 0.12
A49: 杭州市建德市 | B49: 2021 | C49: 425.52 | D49: 9.1 | E49: 51.5 | F49: 39.4 | G49: 9.7091 | H49: =C49/N49 -> 8.384465331 | I49: 38.5 | J49: 63.67 | K49: 11.4442 | L49: 3.0705 | M49: 44.4 | N49: 50.751 | O49: 2314.42 | P49: =M49*10000/O49 -> 191.8407204 | R49: 19210 | S49: 10.6 | T49: =T50*0.877 ->  | U49: =U50*1.035 ->  | V49: 46.3 | W49: 59.54 | X49: 126.06 | Y49: 1.3 | AA49: 356 | AB49: 42.92 | AD49: 328485 | AE49: 392 | AF49: 655.1612 | AG49: 0.04 | AH49: 0.3 | AI49: 1.25 | AJ49: 0.15
A50: 杭州市建德市 | B50: 2020 | C50: 388.71 | D50: 9.5 | E50: 48.1 | F50: 42.4 | G50: 8.8559 | H50: =C50/N50 -> 7.623244512 | I50: 34.23 | J50: 59.32 | K50: 10.5367 | L50: 2.6676 | M50: =M49/1.002 -> 44.31137725 | N50: 50.9901 | O50: 2314.42 | P50: =M50*10000/O50 -> 191.4578047 | R50: 18916 | S50: 10.6 | T50: =T51*0.901 ->  | U50: =U51*0.919 ->  | V50: 54.09 | W50: 66.57 | X50: 114.07 | Y50: 1.15 | AA50: 359 | AB50: 49.89 | AE50: 366 | AF50: 507.4049 | AG50: 0.03 | AH50: 0.45 | AI50: 0.99 | AJ50: 0.08
A51: 杭州市建德市 | B51: 2019 | C51: 377.87 | D51: 9.4 | E51: 48.2 | F51: 42.4 | G51: =C51/M51 -> 8.453467562 | H51: =C51/N51 -> 7.399103578 | I51: 31.1 | J51: 54.15 | K51: 9.6314 | L51: 2.6304 | M51: 44.7 | N51: 51.0697 | O51: 2314.42 | P51: =M51*10000/O51 -> 193.1369414 | R51: 18844 | S51: 10.6 | T51: =#REF!*1.127 ->  | U51: =#REF!*1.083 ->  | V51: 38.86 | W51: 43.21 | X51: =X50/0.993 -> 114.8741188 | Y51: 1.49 | AA51: 350 | AB51: 34.3 | AE51: 302 | AF51: 451.1089 | AG51: 0.03 | AH51: 1.1 | AI51: 1.86 | AJ51: 0.12
A52: 湖州市吴兴区 | B52: 2023 | C52: 924.93 | D52: 2.72 | E52: 45.47 | F52: 51.81 | G52: =C52/M52 -> 12.58408163 | H52: =C52/N52 -> 20.64575893 | I52: 66.6 | M52: 73.5 | N52: 44.8 | O52: =863-225 -> 638 | P52: =M52*10000/O52 -> 1152.037618 | Q52: 76 | T52: =T53*1.061 ->  | V52: 92.92 | Z52: 503.57 | AA52: 2.3 | AF52: 437 | AG52: 0.07 | AH52: 0.27 | AI52: 0.82 | AJ52: 0.17
A53: 湖州市吴兴区 | B53: 2022 | C53: 897.2649 | D53: 2.8 | E53: 46.9 | F53: 50.3 | G53: 12.342 | H53: 19.9753 | I53: 62.4873 | J53: 69.1239 | K53: 13.8139 | L53: 2.4154 | M53: =103.71-#REF! ->  | N53: 44.9 | O53: =863-225 -> 638 | P53: =M53*10000/O53 ->  | Q53: 74.4 | R53: 11536 | T53: =T54*1.054 ->  | U53: 178.6353 | V53: 177.332 | W53: 209.3346 | X53: 156.1475 | Y53: 188.3723 | Z53: 889.9 | AE53: 544029 | AF53: 422 | AG53: 0.09 | AH53: 0.38 | AI53: 0.88 | AJ53: 0.1
A54: 湖州市吴兴区 | B54: 2021 | C54: 850.1376 | D54: 2.6 | E54: 46.9 | F54: 50.5 | G54: 11.8415 | H54: 18.9369 | I54: 63.4425 | J54: 58.4001 | K54: 14.6048 | L54: 2.0806 | M54: 72.7 | N54: 44.93 | O54: =863-225 -> 638 | P54: =M54*10000/O54 -> 1139.498433 | Q54: 73.9 | R54: 11559 | T54: =T55*1.256 ->  | U54: 178.3809 | V54: 216.5036 | W54: 279.5752 | X54: 187.4736 | Y54: 251.7061 | Z54: 691.12 | AE54: 508595 | AF54: 436 | AG54: 0.06 | AH54: 0.21 | AI54: 1.35 | AJ54: 0.1
A55: 湖州市吴兴区 | B55: 2020 | C55: 752.7509 | D55: 3 | E55: 45.4 | F55: 51.6 | G55: =C55/M55 -> 10.56351644 | H55: 16.7583 | I55: 51.2045 | J55: 46.3533 | K55: 9.887 | L55: 1.794 | M55: 71.2595 | N55: 44.85 | O55: =863-225 -> 638 | P55: =M55*10000/O55 -> 1116.920063 | Q55: =522324*100/712595 -> 73.2988584 | R55: 10922 | T55: =T56*1.074 ->  | U55: 156.1307 | V55: 198.0449 | W55: 238.5377 | X55: 181.2857 | Y55: 222.0144 | Z55: 595.8 | AE55: 450951 | AF55: 392 | AG55: 0.07 | AH55: 0.32 | AI55: 0.92 | AJ55: 0.19
A56: 湖州市吴兴区 | B56: 2019 | C56: 726.9786 | H56: 16.1398 | I56: 45.5456 | J56: 47.4537 | K56: 8.7052 | L56: 1.6704 | N56: 44.98 | O56: =863-225 -> 638 | R56: 11219 | T56: =#REF!*1.146 ->  | U56: 156.095 | V56: 159.5621 | W56: 195.6703 | X56: 143.2029 | Y56: 177.1908 | Z56: 406.06 | AE56: 422446 | AF56: 335 | AG56: 0.04 | AH56: 0.2 | AI56: 0 | AJ56: 0.07
A57: 湖州市南浔区 | B57: 2023 | C57: 585.03 | D57: 5.28 | E57: 56.55 | F57: 38.17 | G57: =C57/M57 -> 10.63690909 | H57: =C57/N57 -> 12.16278586 | I57: 42.1 | J57: 67.5 | M57: 55 | N57: 48.1 | O57: 702 | Q57: 57.6 | T57: =T58*1.061 ->  | U57: =U58*0.96 -> 75.812064 | V57: 57.03 | W57: 57.23 | X57: 48.49 | Y57: 51.95 | Z57: =Z58*1.07 -> 225.1061357 | AA57: 0.4 | AF57: 972 | AG57: 0.06 | AH57: 0.28 | AI57: 0.77 | AJ57: 0.09
A58: 湖州市南浔区 | B58: 2022 | C58: 559.2367 | D58: 5.6 | E58: 58.1 | F58: 36.3 | G58: 10.23680578 | H58: 11.522 | I58: 39.5487 | J58: 68.9242 | K58: 14.2112 | L58: 2.0764 | M58: 54.63 | N58: 48.43 | O58: 702 | P58: =M58*10000/O58 -> 778.2051282 | Q58: 56.9 | R58: 15654 | T58: =T59*1.12 ->  | U58: 78.9709 | V58: 59.4628 | W58: 61.4522 | X58: 49.8261 | Y58: 55.0659 | Z58: =Z59*1.025 -> 210.3795661 | AA58: 1.89 | AE58: 403086 | AF58: 954 | AG58: 0.06 | AH58: 0.21 | AI58: 0.86 | AJ58: 0.09
A59: 湖州市南浔区 | B59: 2021 | C59: 528.2858 | D59: 5.4 | E59: 58.5 | F59: 36.1 | G59: 9.693317431 | H59: 10.832 | I59: 43.0457 | J59: 66.1797 | K59: 11.1877 | L59: 1.7701 | M59: 54.5 | N59: 48.64 | O59: 702 | P59: 776.3532764 | Q59: 56.7 | R59: 14991 | T59: =T60*1.298 ->  | U59: 78.6455 | V59: 112.1208 | W59: 120.7567 | X59: 89.2794 | Y59: 102.1589 | Z59: =Z60*1.091 -> 205.2483572 | AA59: 0.26 | AE59: 421503 | AF59: 1079 | AG59: 0.04 | AH59: 0.23 | AI59: 0.64 | AJ59: 0.32
A60: 湖州市南浔区 | B60: 2020 | C60: 467.8302 | D60: 5.7 | E60: 57.9 | F60: 36.4 | G60: 8.61741903 | H60: 9.5573 | I60: 40.4597 | J60: 55.2216 | K60: 10.0885 | L60: 1.538 | M60: 54.2889 | N60: 48.9 | O60: 702 | P60: 773.3461538 | Q60: =307204*100/542889 -> 56.58688977 | R60: 13506 | T60: =T61*1.076 ->  | U60: 80.8244 | V60: 129.0275 | W60: 132.7343 | X60: 112.807 | Y60: 121.1608 | Z60: =Z61*0.939 -> 188.12865 | AA60: 0.52 | AE60: 368750 | AF60: 1076 | AG60: 0.04 | AH60: 0.51 | AI60: 0.59 | AJ60: 0.11
A61: 湖州市南浔区 | B61: 2019 | C61: 458.7944 | D61: 5.2 | E61: 59.7 | F61: 35.1 | G61: 8.2621 | H61: 9.3471 | I61: 37.9252 | J61: 49.014 | K61: 9.0202 | L61: 1.3075 | M61: =458.01*10000/82621 -> 55.43505888 | N61: 49.04 | O61: 702 | P61: 789.6732035 | R61: 13554 | T61: =#REF!*1.135 ->  | U61: 68.3018 | V61: 106.5568 | W61: 97.1579 | X61: 98.5434 | Y61: 91.1198 | Z61: 200.35 | AA61: 1.22 | AE61: 388484 | AF61: 1119 | AG61: 0.04 | AH61: 0.16 | AI61: 0 | AJ61: 0.1
A62: 湖州市德清县 | B62: 2023 | C62: 680.66 | D62: 4.02 | E62: 56.78 | F62: 39.2 | G62: 12.2531 | H62: =C62/N62 -> 15.39954751 | I62: 85 | J62: 107.5 | M62: 55.72 | N62: 44.2 | O62: 938 | P62: =M62*10000/O62 -> 594.0298507 | Q62: 63.45 | T62: =T63*1.15 ->  | U62: =U61*1.021 -> 69.7361378 | V62: 52.3 | W62: 64.7 | X62: 42.7 | Z62: 184.7 | AA62: 2.8 | AF62: 950 | AG62: 0.09 | AH62: 0.25 | AI62: 0.67 | AJ62: 0.17
A63: 湖州市德清县 | B63: 2022 | C63: 658.207 | D63: 4.2 | E63: 57.8 | F63: 38 | G63: =C63/M63 -> 11.8852835 | H63: 14.8538 | I63: 79.842 | J63: 101.568 | K63: 15.2711 | L63: 5.1733 | M63: 55.38 | N63: 44.32 | O63: 938 | P63: 590.4051173 | Q63: 62.7 | R63: 16822 | S63: 41.42 | T63: =T64*1.154 ->  | U63: 97.8632 | V63: 68.9595 | W63: 102.3231 | X63: 56.7807 | Y63: 86.7738 | Z63: 216.6308 | AA63: 3.0553 | AD63: 27.65 | AE63: 422666 | AF63: 908 | AG63: 0.08 | AH63: 0.27 | AI63: 0.85 | AJ63: 0.15
A64: 湖州市德清县 | B64: 2021 | C64: 617.9189 | D64: 4.3 | E64: 57.8 | F64: 37.9 | G64: 11.17394033 | H64: 13.944 | I64: 83.2467 | J64: 79.9753 | K64: 14.4354 | L64: 4.4984 | M64: 55.3 | N64: 44.3 | O64: 938 | P64: 589.5522388 | Q64: 62.4 | R64: 16427 | S64: 41 | T64: =T65*1.155 ->  | U64: 81.4002 | V64: 106.8047 | W64: 163.3915 | X64: 94.9381 | Y64: 150.5376 | Z64: 213.1039 | AA64: 3.1525 | AE64: 436873 | AF64: 875 | AG64: 0.07 | AH64: 0.62 | AI64: 1.45 | AJ64: 0.15
A65: 湖州市德清县 | B65: 2020 | C65: 544.1498 | D65: 4.6 | E65: 56.1 | F65: 39.3 | G65: 9.919459392 | H65: 12.2788 | I65: 67.082 | J65: 78.2193 | K65: 13.757 | L65: 3.8744 | M65: 54.8568 | N65: 44.32 | O65: 938 | P65: 584.8272921 | Q65: =341128*100/548568 -> 62.18518032 | R65: 17144 | S65: 39 | T65: =T66*1.069 ->  | U65: 76.5206 | V65: 118.9106 | W65: 184.2364 | X65: 113.1715 | Y65: 177.1751 | Z65: 195.6161 | AA65: 3.728 | AE65: 381646 | AF65: 785 | AG65: 0.07 | AH65: 0.33 | AI65: 1.18 | AJ65: 0.12
A66: 湖州市德清县 | B66: 2019 | C66: 536.0992 | D66: 1.4 | E66: 57.7 | F66: 37.9 | H66: 12.1085 | I66: 65.6609 | J66: 83.6558 | K66: 13.6008 | L66: 3.8405 | N66: 44.31 | O66: 938 | R66: 17280 | S66: 37 | T66: =#REF!*1.143 ->  | U66: 72.5605 | V66: 114.7582 | W66: 184.3593 | X66: 112.3481 | Y66: 180.7587 | Z66: 209.4267 | AA66: 3.6459 | AE66: 367433 | AF66: 746 | AG66: 0.06 | AH66: 0.44 | AI66: 0.53 | AJ66: 0.07
A67: 湖州市长兴县 | B67: 2023 | C67: 893.98 | D67: 4.56 | E67: 48.85 | F67: 46.59 | G67: 13.1275 | H67: =C67/N67 -> 14.06734854 | I67: 87.22 | J67: 119.98 | M67: 68.16 | N67: 63.55 | O67: 938 | Q67: 65.1 | S67: 48 | T67: =T68*1.075 ->  | U67: =93.6348*0.828 -> 77.5296144 | V67: 63.1 | W67: 72.2 | Z67: 354.5 | AA67: 1.8373 | AF67: 993 | AG67: 0.06 | AH67: 0.42 | AI67: 0.82 | AJ67: 0.26
A68: 湖州市长兴县 | B68: 2022 | C68: 853.3656 | D68: 5.2 | E68: 51.1 | F68: 43.7 | G68: 12.568 | H68: 13.39 | I68: 81.8826 | J68: 117.1722 | K68: 19.3065 | L68: 5.1417 | M68: 67.98 | N68: 63.71 | O68: 1431 | P68: =M68*10000/O68 -> 475.0524109 | Q68: 64.3 | R68: 23892 | S68: 48 | T68: =T69*1.024 ->  | U68: 93.6348 | V68: 75.1972 | W68: 90.7847 | X68: 62.1295 | Y68: 80.4238 | Z68: 327.6432 | AA68: 3.861 | AE68: 816873 | AF68: 955 | AG68: 0.06 | AH68: 0.53 | AI68: 0.65 | AJ68: 0.21
A69: 湖州市长兴县 | B69: 2021 | C69: 801.9122 | D69: 5.2 | E69: 50.2 | F69: 44.6 | G69: 11.846 | H69: 12.577 | I69: 82.75 | J69: 101.8 | K69: 17.9771 | L69: 4.4277 | M69: 67.8 | N69: 63.75 | O69: 1431 | P69: 473.7945493 | Q69: 64 | R69: 23375 | S69: 48 | T69: =T70*0.857 ->  | U69: 93.5137 | V69: 153.1282 | W69: 169.0858 | X69: 146.2059 | Y69: 163.577 | Z69: 318.4254 | AA69: 2.0042 | AE69: 809061 | AF69: 928 | AG69: 0.05 | AH69: 0.45 | AI69: 1.07 | AJ69: 0.1
A70: 湖州市长兴县 | B70: 2020 | C70: 702.3938 | D70: 5.2 | E70: 49.5 | F70: 45.3 | G70: =C70/M70 -> 10.4247376 | H70: 11.0181 | I70: 67.5539 | J70: 90.2017 | K70: 16.9827 | L70: 3.8461 | M70: 67.3776 | N70: 63.77 | O70: 1431 | P70: 470.8427673 | Q70: =430311*100/673776 -> 63.86558738 | R70: 13097 | S70: 48 | T70: =T71*1.062 ->  | U70: 89.0837 | V70: 141.7439 | W70: 141.9544 | X70: 127.1903 | Y70: 133.0518 | Z70: 297.3135 | AA70: 2.8551 | AE70: 728929 | AF70: 851 | AG70: 0.05 | AH70: 0.5 | AI70: 0.82 | AJ70: 0.17
A71: 湖州市长兴县 | B71: 2019 | C71: 692.9609 | D71: 5.1 | E71: 51.3 | F71: 43.6 | H71: 10.8811 | I71: 65.8269 | J71: 81.095 | K71: 15.5719 | L71: 3.6123 | N71: 63.73 | O71: 1431 | R71: 23690 | S71: 48 | T71: =#REF!*1.112 ->  | U71: 85.9007 | V71: 152.6186 | W71: 152.2641 | X71: 140.804 | Y71: 143.3171 | Z71: 305.937 | AA71: 3.6459 | AE71: 728717 | AF71: 789 | AG71: 0.05 | AH71: 0.17 | AI71: 0.21 | AJ71: 0.12
A72: 湖州市安吉县 | B72: 2023 | C72: 615.12 | D72: 5.24 | E72: 43.93 | F72: 50.82 | G72: =C72/M72 -> 10.252 | H72: =C72/N72 -> 12.93899874 | I72: 65.11 | J72: 93.72 | K72: 17.63 | M72: 60 | N72: 47.54 | O72: 1886 | P72: =M72*10000/O72 -> 318.1336161 | Q72: 61.9 | T72: 300.23 | U72: 81.77 | V72: 67.37 | W72: 85.44 | X72: 60.14 | Y72: 79.81 | Z72: 240.84 | AF72: 604 | AG72: 0.06 | AH72: 0.43 | AI72: 0.85 | AJ72: 0.31
A73: 湖州市安吉县 | B73: 2022 | C73: 582.3726 | D73: 5.2 | E73: 46.8 | F73: 48 | G73: =C73/M73 -> 9.769713135 | H73: 12.2653 | I73: 62.4837 | J73: 94.1874 | K73: 16.4048 | L73: 5.875 | M73: 59.61 | N73: 47.53 | O73: 1886 | P73: 316.0657476 | Q73: 61.1 | R73: 16089 | S73: 39.2 | T73: 244.88 | U73: 83.7489 | V73: 100.2517 | W73: 106.6725 | X73: 83.4827 | Y73: 99.8828 | Z73: 165.2058 | AA73: 1.4745 | AE73: 268322 | AF73: 588 | AG73: 0.06 | AH73: 0.46 | AI73: 0.75 | AJ73: 0.14
A74: 湖州市安吉县 | B74: 2021 | C74: 566.349 | D74: 4.9 | E74: 48.4 | F74: 46.7 | G74: =C74/M74 -> 9.518470588 | H74: 11.9537 | I74: 65.8286 | J74: 88.6692 | K74: 15.5081 | L74: 5.0862 | M74: 59.5 | N74: 47.43 | O74: 1886 | P74: 315.4825027 | Q74: 61 | R74: 15941 | S74: 39 | T74: 227.64 | U74: 80.3936 | V74: 139.5877 | W74: 182.5702 | X74: 132.5212 | Y74: 174.3939 | Z74: 158.2302 | AA74: 0.7204 | AE74: 288719 | AF74: 580 | AG74: 0.05 | AH74: 0.22 | AI74: 0.66 | AJ74: 0.11
A75: 湖州市安吉县 | B75: 2020 | C75: 487.0578 | D75: 5.8 | E75: 44.4 | F75: 49.8 | G75: =C75/M75 -> 8.305769523 | H75: 10.3841 | I75: 59.7599 | J75: 86.2222 | K75: 15.0195 | L75: 4.4167 | M75: 58.6409 | N75: 47.32 | O75: 1886 | P75: 310.9273595 | Q75: =355179*100/586409 -> 60.56847695 | R75: 15842 | S75: 39 | T75: 187.59 | U75: 71.4181 | V75: 129.5088 | W75: 165.6441 | X75: 119.317 | Y75: 155.0964 | Z75: 147.6007 | AA75: 2.1048 | AE75: 243741 | AF75: 522 | AG75: 0.06 | AH75: 0.27 | AI75: 0.42 | AJ75: 0.13
A76: 湖州市安吉县 | B76: 2019 | C76: 470.7257 | H76: 9.9853 | I76: 53.5632 | J76: 87.5665 | K76: 14.9795 | L76: 4.379 | N76: 47.22 | O76: 1886 | R76: 15928 | S76: 39 | T76: 175.43 | U76: 70.9893 | V76: 123.9544 | W76: 145.7336 | X76: 113.8353 | Y76: 137.117 | Z76: 146.3255 | AA76: 3.1039 | AE76: 225575 | AF76: 466 | AG76: 0.05 | AH76: 0.36 | AI76: 0.34 | AJ76: 0.17
A77: 绍兴市柯桥区 | B77: 2023 | C77: 2030.29 | D77: 2.1 | E77: 50.1 | F77: 47.8 | G77: =C77/M77 -> 18.05504669 | H77: 28.8865 | I77: 142.23 | J77: 139.15 | M77: 112.45 | N77: 70.37 | O77: 1066 | Q77: 83.7 | T77: =T78*1.124 ->  | U77: 214.72 | V77: 163.98 | W77: 280.84 | Z77: 448.98 | AA77: 2.65 | AG77: 0.06 | AH77: 0.5 | AI77: 1.59 | AJ77: 0.15
A78: 绍兴市柯桥区 | B78: 2022 | C78: 1901.36 | D78: 2.2 | E78: 51 | F78: 46.7 | G78: 17.0602 | H78: 27.1608 | I78: 132.591 | J78: 137.2737 | K78: 31.3166 | L78: 9.35 | M78: 111.57 | N78: 70.2 | O78: 1066 | P78: 3353 | Q78: 83.1406292 | R78: 9255 | S78: 81 | T78: =T79*1.101 ->  | U78: 207.9265 | V78: 178.18 | W78: 252.6103 | X78: 95.91 | Y78: 179.6493 | Z78: 401.0715 | AA78: 5.0719 | AD78: 56.67 | AE78: 1454184 | AF78: 1340 | AG78: 0.06 | AH78: 0.5 | AI78: 1.59 | AJ78: 0.15
A79: 绍兴市柯桥区 | B79: 2021 | C79: 1758.2996 | D79: 2.3 | E79: 50 | F79: 47.7 | G79: 15.8691 | H79: 25.1382 | I79: 147.1416 | J79: 132.916 | K79: 31.2959 | L79: 8.118 | M79: 111.34 | N79: 69.81 | O79: 1066 | P79: 3836 | R79: 9234 | S79: 81 | T79: =T80*1.007 ->  | U79: 200.1472 | V79: 269.81 | W79: 429.915 | X79: 170.11 | Y79: 339.827 | Z79: 383.6152 | AA79: 2.5693 | AD79: 48.86 | AE79: 1530828 | AF79: 1286 | AG79: 0.08 | AH79: 0.62 | AI79: 1.88 | AJ79: 0.16
A80: 绍兴市柯桥区 | B80: 2020 | C80: 1510.6629 | D80: 2.6 | E80: 48.4 | F80: 49.1 | G80: 13.7709 | H80: 21.8843 | I80: 137.2348 | J80: 129.6878 | K80: 30.1668 | L80: 7.0545 | M80: 110.29 | N80: 69.26 | O80: 1066 | P80: 3571 | R80: 9317 | S80: 79.99 | T80: =T81*1.068 ->  | U80: 245.7824 | V80: 328.98 | W80: 532.007 | X80: 240.76 | Y80: 464.5454 | Z80: 354.3457 | AA80: 2.0793 | AD80: 41.14 | AE80: 1359138 | AF80: 1209 | AG80: 0.06 | AH80: 1.32 | AI80: 1.48 | AJ80: 0.32
A81: 绍兴市柯桥区 | B81: 2019 | C81: 1502.1777 | D81: 2.5 | E81: 50.2 | F81: 47.3 | G81: 13.8533 | H81: 21.9408 | I81: 131.4074 | J81: 126.9886 | K81: 28.999 | L81: 6.907 | M81: 100.02 | N81: 68.8 | O81: 1066 | P81: 3098 | Q81: 80.09 | R81: 9381 | S81: 77 | T81: =#REF!*1.089 ->  | U81: 210.1282 | V81: 338.54 | W81: 407.7485 | X81: 208.96 | Y81: 312.3316 | Z81: 362.0995 | AA81: 2.0722 | AD81: 42.67 | AE81: 1427884 | AF81: 1229 | AG81: 0.08 | AH81: 0.59 | AI81: 1.95 | AJ81: 0
A82: 绍兴市上虞区 | B82: 2023 | C82: 1317.72 | D82: 4.1 | E82: 51.5 | F82: 44.3 | G82: =C82/M82 -> 16.41405082 | H82: 18.4995 | I82: 97.67 | J82: 137.5 | M82: 80.28 | N82: 71.04 | O82: 1406 | Q82: 69.8 | T82: =T83*1.2 ->  | U82: 148.17 | V82: 120.69 | W82: 161.62 | Z82: 446.76 | AA82: 2.7946 | AE82: 631900 | AF82: 873 | AG82: 0.05 | AH82: 0.5 | AI82: 1.32 | AJ82: 0.43
A83: 绍兴市上虞区 | B83: 2022 | C83: 1241.7613 | D83: 4.5 | E83: 52.2 | F83: 43.3 | G83: 15.5902 | H83: 17.3525 | I83: 91.0102 | J83: 137.2878 | K83: 25.8322 | L83: 8.3696 | M83: 79.77 | N83: 71.42 | O83: 1406 | P83: 2418 | Q83: 68.94822615 | R83: 26087 | S83: 47.96 | T83: =T84*1.131 ->  | U83: 127.8825 | V83: 201.03 | W83: 127.0197 | X83: 54.31 | Y83: 97.5711 | Z83: 416.0253 | AA83: 1.9697 | AD83: 41.43 | AE83: 608920 | AF83: 866 | AG83: 0.05 | AH83: 0.49 | AI83: 1.37 | AJ83: 0.19
A84: 绍兴市上虞区 | B84: 2021 | C84: 1141.0101 | D84: 4.6 | E84: 50.3 | F84: 45.1 | G84: 14.3073 | H84: 15.8022 | I84: 100.1046 | J84: 129.6759 | K84: 21.8521 | L84: 7.2734 | M84: 79.54 | N84: 71.71 | O84: 1362 | P84: 2400 | R84: 28327 | S84: 47.96 | T84: =T85*1.133 ->  | U84: 115.5945 | V84: 145.56 | W84: 164.6892 | X84: 93.73 | Y84: 136.8819 | Z84: 402.1487 | AA84: 1.9509 | AD84: 36.93 | AE84: 560809 | AF84: 825 | AG84: 0.05 | AH84: 0.4 | AI84: 1.61 | AJ84: 0
A85: 绍兴市上虞区 | B85: 2020 | C85: 1043.4991 | D85: 5 | E85: 49.3 | F85: 45.7 | G85: 12.4078 | H85: 13.4041 | I85: 93.6898 | J85: 121.0462 | K85: 21.5381 | L85: 6.3134 | M85: 84.37 | N85: 77.75 | O85: 1406 | P85: 2368 | R85: 28493 | S85: 46 | T85: =T86*1.133 ->  | U85: 98.9182 | V85: 80.13 | W85: 238.244 | X85: 144.16 | Y85: 218.9307 | Z85: 452.4131 | AA85: 3.3594 | AD85: 37.16 | AE85: 507438 | AF85: 813 | AG85: 0.05 | AH85: 0.69 | AI85: 1.13 | AJ85: 0.09
A86: 绍兴市上虞区 | B86: 2019 | C86: 983.6516 | D86: 5.1 | E86: 51.6 | F86: 43.3 | G86: 11.776 | H86: 12.6122 | I86: 89.5152 | J86: 104.4758 | K86: 21.4921 | L86: 6.1518 | M86: 79.85 | N86: 77.94 | O86: 1406 | P86: 2339 | Q86: 62.14 | R86: 28699 | S86: 45 | T86: =#REF!*1.113 ->  | U86: 90.3092 | V86: 126.78 | W86: 176.5632 | X86: 114.73 | Y86: 166.3135 | Z86: 436.8745 | AA86: 3.4694 | AD86: 33.17 | AE86: 494196 | AF86: 785 | AG86: 0.04 | AH86: 0.37 | AI86: 0.49 | AJ86: 0.15
A87: 绍兴市诸暨市 | B87: 2023 | C87: 1755.29 | D87: 3.2 | E87: 47.1 | F87: 49.8 | G87: =C87/M87 -> 14.27993817 | H87: 16.3501 | I87: 97.2 | J87: 126.2 | L87: 1.72 | M87: 122.92 | N87: 107.07 | O87: 2311 | Q87: 65.3 | T87: =T88*1.077 ->  | U87: 132.44 | V87: 149.97 | W87: 209.83 | X87: 99.22 | Y87: 160.98 | Z87: 576.19 | AA87: 1.04 | AF87: 1315 | AG87: 0.08 | AH87: 0.2 | AI87: 1.15 | AJ87: 0.08
A88: 绍兴市诸暨市 | B88: 2022 | C88: 1658.8419 | D88: 3.5 | E88: 48.8 | F88: 47.7 | G88: 13.6306 | H88: 153884 | I88: 90.2845 | J88: 123.3624 | K88: 30.5916 | L88: 1.4901 | M88: 121.93 | N88: 107.64 | O88: 2311 | P88: 1284 | Q88: 63.64307389 | R88: 32529 | S88: 71.48 | T88: =T89*1.102 ->  | U88: 171.9794 | V88: 167.74 | W88: 212.8043 | X88: 113.37 | Y88: 173.9773 | Z88: 526.3478 | AA88: 0.7535 | AD88: 40.01 | AE88: 783200 | AF88: 1279 | AG88: 0.07 | AH88: 0.31 | AI88: 1.7 | AJ88: 0
A89: 绍兴市诸暨市 | B89: 2021 | C89: 1531.605 | D89: 3.5 | E89: 47.5 | F89: 49 | G89: 12.6631 | H89: 14.3038 | I89: 100.2043 | J89: 119.1055 | K89: 27.9941 | L89: 1.252 | M89: 121.51 | N89: 107.95 | O89: 2311 | P89: 1260 | R89: 32525 | S89: 87.2 | T89: =T90*1.134 ->  | U89: 166.3376 | V89: 231.81 | W89: 285.2195 | X89: 177.04 | Y89: 248.1823 | Z89: 500.5381 | AA89: 1.3509 | AD89: 36.66 | AE89: 808894 | AF89: 1197 | AG89: 0.06 | AH89: 0.35 | AI89: 1.92 | AJ89: 0.26
A90: 绍兴市诸暨市 | B90: 2020 | C90: 1346.9804 | D90: 3.8 | E90: 45.3 | F90: 50.9 | G90: 11.2062 | H90: 12.4299 | I90: 90.3182 | J90: 117.645 | K90: 24.6806 | L90: 1.0146 | M90: 120.41 | N90: 108.3 | O90: 2311 | P90: 1199 | R90: 32258 | S90: 86 | T90: =T91*1.07 ->  | U90: 147.218 | V90: 263.13 | W90: 284.9479 | X90: 207.74 | Y90: 250.0675 | Z90: 462.4624 | AA90: 1.1254 | AD90: 30.82 | AE90: 681066 | AF90: 1088 | AG90: 0.06 | AH90: 0.18 | AI90: 1.24 | AJ90: 0.1
A91: 绍兴市诸暨市 | B91: 2019 | C91: 1310.2347 | D91: 3.6 | E91: 49.3 | F91: 47.1 | G91: 10.9364 | H91: 12.0776 | I91: 89.8144 | J91: 110.5037 | K91: 23.2118 | L91: 9.2611 | M91: 118.78 | N91: 108.43 | O91: 2311 | P91: 1256 | Q91: 60.47 | R91: 32415 | S91: 68.8 | T91: =#REF!*1.073 ->  | U91: 136.1339 | V91: 224.25 | W91: 197.8364 | X91: 167.36 | Y91: 171.0381 | Z91: 475.4372 | AA91: 0.6296 | AD91: 24.71 | AE91: 715129 | AF91: 1184 | AG91: 0.05 | AH91: 0.14 | AI91: 1.07 | AJ91: 0.12
A92: 绍兴市嵊州市 | B92: 2023 | C92: 750.36 | D92: 6 | E92: 44.9 | F92: 49.1 | G92: =C92/M92 -> 10.79344074 | H92: 10.8356 | I92: 50.81 | J92: 92.52 | M92: 69.52 | N92: 70.3734 | O92: 1789 | Q92: 60.1 | T92: =T93*1.08 ->  | U92: 54.23 | V92: 61.07 | X92: 72.34 | Z92: 333.38 | AA92: 0.6366 | AE92: 275000 | AF92: 730 | AG92: 0.06 | AH92: 0.13 | AI92: 0.7 | AJ92: 0.1
A93: 绍兴市嵊州市 | B93: 2022 | C93: 711.0757 | D93: 6.3 | E93: 46.5 | F93: 47.3 | G93: 10.3204 | H93: 10.3024 | I93: 47.284 | J93: 104.1889 | K93: 16.3354 | L93: 7.4845 | M93: 69.02 | N93: 70.9739 | O93: 1789 | P93: 1584 | Q93: 58.88148363 | R93: 24681 | S93: 43.7 | T93: =T94*1.153 ->  | U93: 75.0955 | V93: 67.16 | W93: 66.4173 | X93: 41.42 | Y93: 48.4104 | Z93: 298.1273 | AA93: 0.2358 | AD93: 17.05 | AE93: 245107 | AF93: 715 | AG93: 0.05 | AH93: 0.27 | AI93: 0.59 | AJ93: 0.09
A94: 绍兴市嵊州市 | B94: 2021 | C94: 658.8677 | D94: 6.3 | E94: 44.8 | F94: 48.9 | G94: 9.6255 | H94: 9.1832 | I94: 52.027 | J94: 80.2139 | K94: 15.2171 | L94: 6.4503 | M94: 68.82 | N94: 71.45 | O94: 1789 | P94: 1456 | R94: 23860 | S94: 42.5 | T94: =T95*1.137 ->  | U94: 82.0254 | V94: 111.14 | W94: 108.4581 | X94: 82.34 | Y94: 87.073 | Z94: 285.4106 | AA94: 0.1829 | AD94: 14.93 | AE94: 224224 | AF94: 661 | AG94: 0.04 | AH94: 0.41 | AI94: 0.82 | AJ94: 0.27
A95: 绍兴市嵊州市 | B95: 2020 | C95: 591.012 | D95: 7 | E95: 43.1 | F95: 49.9 | G95: 8.6786 | H95: 8.1883 | I95: 45.8205 | J95: 72.1798 | K95: 13.4886 | L95: 5.5265 | M95: 68.12 | N95: 71.94 | O95: 1789 | P95: 1450 | R95: 28493 | S95: 41.99 | T95: =T96*0.821 ->  | U95: 81.513 | V95: 130.05 | W95: 114.5837 | X95: 122.99 | Y95: 110.5477 | Z95: 266.7409 | AA95: 0.2008 | AD95: 13.34 | AE95: 184639 | AF95: 606 | AG95: 0.04 | AH95: 0.59 | AI95: 0.75 | AJ95: 0.12
A96: 绍兴市嵊州市 | B96: 2019 | C96: 587.8762 | D96: 6.7 | E96: 48.1 | F96: 45.2 | G96: 8.6325 | H96: 8.1062 | I96: 45.759 | J96: 75.9482 | K96: 15.532 | L96: 5.5854 | M96: 69.43 | N96: 72.41 | O96: 1789 | P96: 1469 | Q96: 60.02 | R96: 25811 | S96: 41.4 | T96: =#REF!*1.025 ->  | U96: 87.0705 | V96: 87.25 | W96: 70.1378 | X96: 73.3 | Y96: 63.5441 | Z96: 286.2029 | AA96: 0.0921 | AD96: 14.94 | AE96: 191787 | AF96: 719 | AG96: 0.04 | AH96: 0.47 | AI96: 0.42 | AJ96: 0.16
A97: 绍兴市新昌县 | B97: 2023 | C97: 606.67 | D97: 4.2 | E97: 51.3 | F97: 44.5 | G97: =C97/M97 -> 14.7357299 | H97: 14.1851 | I97: 46.3 | J97: 73.7 | M97: 41.17 | N97: 42.65 | O97: 1214 | Q97: 65.1 | T97: =T98*1.176 ->  | U97: 50.67 | V97: 50.47 | X97: 56.06 | Z97: 222.07 | AA97: 0.6425 | AG97: 0.05 | AH97: 0.79 | AI97: 0.61 | AJ97: 0.4
A98: 绍兴市新昌县 | B98: 2022 | C98: 564.754 | D98: 4.5 | E98: 51.5 | F98: 44.1 | G98: 13.859 | H98: 13.1473 | I98: 41.6516 | J98: 71.0659 | K98: 13.229 | L98: 7.059 | M98: 40.81 | N98: 42.89 | O98: 1214 | P98: 1287 | Q98: 63.88140162 | R98: 16625 | S98: 33.67 | T98: =T99*1.152 ->  | U98: 37.9468 | V98: 54.33 | W98: 59.5575 | X98: 33.13 | Y98: 48.1706 | Z98: 195.9843 | AA98: 0.2609 | AD98: 24.94 | AE98: 185211 | AF98: 370 | AG98: 0.08 | AH98: 0.77 | AI98: 1.16 | AJ98: 0.79
A99: 绍兴市新昌县 | B99: 2021 | C99: 518.7171 | D99: 4.6 | E99: 50.4 | F99: 45 | G99: 12.8078 | H99: 11.9991 | I99: 44.9491 | J99: 69.787 | K99: 13.1681 | L99: 6.1314 | M99: 40.7 | N99: 43.02 | O99: 1214 | P99: 1261 | R99: 16764 | S99: 33.3 | T99: =T100*1.062 ->  | U99: 36.0173 | V99: 71.8 | W99: 72.1732 | X99: 57.48 | Y99: 63.8331 | Z99: 182.7352 | AA99: 0.2215 | AD99: 22.75 | AE99: 185248 | AF99: 352 | AG99: 0.04 | AH99: 0.85 | AI99: 1.48 | AJ99: 0.55
A100: 绍兴市新昌县 | B100: 2020 | C100: 462.0674 | D100: 4.9 | E100: 47.9 | F100: 47.2 | G100: 11.4942 | H100: 10.6729 | I100: 43.721 | J100: 64.5682 | K100: 12.5109 | L100: 5.3232 | M100: 40.3 | N100: 43.22 | O100: 1214 | P100: 1173 | R100: 16981 | S100: 27.19 | T100: =T101*0.986 ->  | U100: 42.9197 | V100: 74.57 | W100: 63.5721 | X100: 59.83 | Y100: 55.5464 | Z100: 165.9779 | AA100: 0.0803 | AD100: 20.22 | AE100: 154753 | AF100: 315 | AG100: 0.04 | AH100: 0.48 | AI100: 0.77 | AJ100: 1.05
A101: 绍兴市新昌县 | B101: 2019 | C101: 453.9964 | D101: 4.9 | E101: 49.6 | F101: 45.5 | G101: 11.3471 | H101: 10.4546 | I101: 43.6635 | J101: 64.345 | K101: 12.4256 | L101: 5.3063 | M101: 38.84 | N101: 43.37 | O101: 1214 | P101: 1136 | Q101: 61.46 | R101: 17001 | S101: 27.19 | T101: =#REF!*0.967 ->  | U101: 39.215 | V101: 74.19 | W101: 56.392 | X101: 50.17 | Y101: 45.5692 | Z101: 170.2497 | AA101: 0.1 | AD101: 18.58 | AE101: 154181 | AF101: 306 | AG101: 0.04 | AH101: 0.07 | AI101: 0.32 | AJ101: 0.06
A102: 温州市鹿城区 | B102: 2023 | C102: 1401.08 | D102: 0.2 | E102: 24.6 | F102: 75.2 | G102: 11.6707 | H102: =C102/N102 -> 17.40255869 | I102: 35.91 | J102: 88.7 | K102: =K103*1.132 -> 26.94726 | L102: =L103*1.151 -> 3.5798402 | M102: 120.94 | N102: 80.51 | O102: 293 | P102: =M102*10000/O102 -> 4127.645051 | Q102: 91.2 | T102: =T103*1.131 -> 637.96317 | U102: =U103*0.156 -> 66.5073396 | Z102: 882.04 | AA102: 0.8135 | AF102: 393 | AG102: 0.15 | AH102: 1.46 | AI102: 2.24 | AJ102: 0.24
A103: 温州市鹿城区 | B103: 2022 | C103: 1307.71 | D103: 0.2 | E103: 25.2 | F103: 74.6 | G103: 10.9845 | H103: =C103/N103 -> 16.29342138 | I103: 35.77 | J103: 85.09 | K103: 23.805 | L103: 3.1102 | M103: 119.16 | N103: 80.26 | O103: 293 | P103: =M103*10000/O103 -> 4066.894198 | Q103: 90.9 | R103: 2691 | T103: 564.07 | U103: 426.3291 | V103: 141.97 | W103: 229.4133 | X103: 117.25 | Y103: 229.4133 | Z103: 816.9 | AA103: 0.7514 | AE103: 148648 | AF103: 426 | AG103: 0.08 | AH103: 1.17 | AI103: 2.76 | AJ103: 0.82
A104: 温州市鹿城区 | B104: 2021 | C104: 1262.03 | D104: 0.2 | E104: 24.2 | F104: 75.6 | G104: 10.6635 | H104: =C104/N104 -> 15.78919054 | I104: 41.44 | J104: 78.69 | K104: 21.3125 | L104: 2.6995 | M104: 118.95 | N104: 79.93 | O104: 293 | P104: =M104*10000/O104 -> 4059.726962 | Q104: 90.65 | R104: 2712 | T104: =T105*1.217 ->  | U104: 316.5632 | V104: 178.95 | W104: 538.431 | X104: 174.75 | Y104: 532.7557 | Z104: 799.53 | AA104: 0.2627 | AE104: 161916 | AF104: 402 | AG104: 0.1 | AH104: 0.43 | AI104: 2.72 | AJ104: 0
A105: 温州市鹿城区 | B105: 2020 | C105: 1172.32 | D105: 0.2 | E105: 23.7 | F105: 76.1 | G105: 9.9332 | H105: =C105/N105 -> 14.76845553 | I105: 35.29 | J105: 74.57 | K105: 18.5024 | L105: 2.3345 | M105: 117.82 | N105: =N104-0.55 -> 79.38 | O105: 293 | P105: =M105*10000/O105 -> 4021.16041 | Q105: 90.45 | R105: 2749 | T105: =T106*1.041 ->  | U105: 218.7228 | V105: 187.32 | W105: 441.0022 | X105: 181.69 | Y105: 430.9673 | Z105: 744.97 | AA105: 0.4002 | AE105: 145734.32 | AF105: 364 | AG105: 0.11 | AH105: 3.52 | AI105: 4.07 | AJ105: 0.64
A106: 温州市鹿城区 | B106: 2019 | C106: 1137.13 | D106: 0.18 | E106: 24.97 | F106: 74.85 | G106: 9.0536 | H106: =C106/N106 -> 14.47651178 | I106: 34.39 | J106: 68.19 | K106: 12.9045 | L106: 2.0211 | M106: 126.26 | N106: 78.55 | O106: 293 | P106: =M106*10000/O106 -> 4309.215017 | Q106: 90.54 | R106: 2777 | T106: =#REF!*1.1 ->  | U106: 200.7945 | V106: 101.28 | W106: 294.913 | X106: 94.79 | Y106: 281.5603 | Z106: 775.23 | AA106: 0.5911 | AE106: 154633 | AF106: 312 | AG106: 0.08 | AH106: 2.6 | AI106: 2.61 | AJ106: 0.08
A107: 温州市龙湾区 | B107: 2023 | C107: 922.43 | D107: 0.3 | E107: 57 | F107: 42.7 | G107: 12.41 | H107: =C107/N107 -> 26.71975297 | I107: 54.08 | J107: 75.12 | K107: 16.81 | L107: 8.75 | M107: =C107/G107 -> 74.32957293 | N107: 34.5224 | O107: 316 | P107: =M107*10000/O107 -> 2352.201675 | T107: =T108*1.024 ->  | U107: =U108*1.039 -> 164.6809805 | V107: 61.32 | X107: 93.83 | Z107: 448.85 | AA107: 0.8557 | AE107: 514000 | AF107: 1277 | AG107: 0.05 | AH107: 0 | AI107: 1.27 | AJ107: 0
A108: 温州市龙湾区 | B108: 2022 | C108: 868.58 | D108: 0.4 | E108: 58.7 | F108: 40.9 | G108: 11.8 | H108: =C108/N108 -> 25.18068412 | I108: 49.18 | J108: 73.71 | K108: 15.7122 | L108: 7.6002 | M108: 73.83 | N108: 34.4939 | O108: 316 | P108: =M108*10000/O108 -> 2336.392405 | Q108: =73.83*100/73.89 -> 99.91879821 | R108: 3173 | T108: =T109*0.945 ->  | U108: 158.4995 | V108: 56.65 | X108: 99.3917 | Y108: 91.9712 | Z108: 433.47 | AA108: 0.3745 | AE108: 482100 | AF108: 1310 | AG108: 0.07 | AH108: 1.21 | AI108: 1.38 | AJ108: 0.69
A109: 温州市龙湾区 | B109: 2021 | C109: 793.84 | D109: 0.5 | E109: 56.1 | F109: 43.5 | G109: 10.8753 | H109: 23.14 | I109: 64.19 | J109: 68.46 | K109: 14.574 | L109: 6.5822 | M109: 73.29 | N109: 34.377 | O109: 316 | P109: =M109*10000/O109 -> 2319.303797 | Q109: =73.22*100/73.29 -> 99.90448902 | R109: 3150 | T109: =T110*1.098 ->  | U109: 147.7958 | V109: 90.72 | X109: 172.8823 | Y109: 160.2531 | Z109: 426.12 | AA109: 0.733 | AE109: 462923 | AF109: 1166 | AG109: 0.07 | AH109: 2.08 | AI109: 2.11 | AJ109: 0.25
A110: 温州市龙湾区 | B110: 2020 | C110: 717.4 | D110: 0.4 | E110: 53.4 | F110: 46.2 | G110: 9.8693 | H110: 21.0131 | I110: 55.88 | J110: 71.16 | K110: 13.7743 | L110: 5.6904 | M110: 72.7 | N110: 34.2348 | O110: 316 | P110: =M110*10000/O110 -> 2300.632911 | Q110: =72.59*100/72.7 -> 99.84869326 | R110: 3208 | T110: =T111*1.04 ->  | U110: 178.3597 | V110: 122.79 | X110: 237.2493 | Y110: 224.9905 | Z110: 390.21 | AA110: 0.3933 | AE110: 396385.04 | AF110: 1025 | AG110: 0.09 | AH110: 7.37 | AI110: 2.54 | AJ110: 0.57
A111: 温州市龙湾区 | B111: 2019 | C111: 704.52 | D111: 0.41 | E111: 53.04 | F111: 46.55 | G111: 9.7667 | H111: 20.7782 | I111: 52.57 | J111: 62.75 | K111: 12.0512 | L111: 4.9087 | M111: 72.76 | N111: 34.0465 | O111: 319 | P111: =M111*10000/O111 -> 2280.877743 | Q111: =66.2*100/72.76 -> 90.98405717 | R111: 3264 | T111: =#REF!*1.101 ->  | U111: 194.1635 | V111: 154.45 | W111: 238.5316 | X111: 129.44 | Y111: 214.0938 | Z111: 438.3 | AA111: 3.3452 | AE111: 103254 | AF111: 944 | AG111: 0.08 | AH111: 0.82 | AI111: 2.64 | AJ111: 0.25
A112: 温州市瓯海区 | B112: 2023 | C112: 873.49 | D112: 0.8 | E112: 38.9 | F112: 60.2 | G112: 8.8009 | H112: =C112/N112 -> 18.07233153 | I112: 42.85 | J112: 70.59 | K112: 16.852466 | M112: =C112/G112 -> 99.2500767 | N112: 48.333 | O112: 466 | P112: =M112*10000/O112 -> 2129.829972 | T112: =T113*0.976 ->  | U112: =U113*0.91 -> 216.702122 | V112: 90.36 | X112: 143.21 | Z112: 407.38 | AA112: 0.3017 | AE112: 240800 | AF112: 803 | AG112: 0.1 | AH112: 0.48 | AI112: 1.91 | AJ112: 0.28
A113: 温州市瓯海区 | B113: 2022 | C113: 804.87 | D113: 0.9 | E113: 40.5 | F113: 58.6 | G113: 8.2088 | H113: =C113/N113 -> 16.84455718 | I113: 44.61 | J113: 70.91 | K113: 16.074 | L113: 2.1495 | M113: 98.3 | N113: 47.7822 | O113: 466 | P113: =M113*10000/O113 -> 2109.44206 | Q113: =82.78*100/98.3 -> 84.21159715 | R113: 5706 | T113: =T114*0.965 ->  | U113: 238.1342 | V113: 77.18 | X113: 150.5985 | Y113: 134.6113 | Z113: 373.51 | AA113: 0.941 | AE113: 226400 | AF113: 823 | AG113: 0.08 | AH113: 0.45 | AI113: 1.42 | AJ113: 0.22
A114: 温州市瓯海区 | B114: 2021 | C114: 770.38 | D114: 0.9 | E114: 42.1 | F114: 57 | G114: 7.9363 | H114: =C114/N114 -> 16.27956612 | I114: 50.01 | J114: 66.6 | K114: 14.9141 | L114: 1.7673 | M114: 97.82 | N114: 47.3219 | O114: 466 | P114: =M114*10000/O114 -> 2099.141631 | Q114: =81.97*100/97.82 -> 83.79676958 | R114: 5791 | T114: =T115*1.102 ->  | U114: 242.897 | V114: 81.24 | X114: 185.5485 | Y114: 173.3517 | Z114: 356.41 | AA114: 0.3509 | AE114: 249095 | AF114: 769 | AG114: 0.07 | AH114: 1.84 | AI114: 3.14 | AJ114: 0.3
A115: 温州市瓯海区 | B115: 2020 | C115: 701.24 | D115: 0.9 | E115: 40.8 | F115: 58.2 | G115: 7.2815 | H115: =C115/N115 -> 14.97617659 | I115: 43.1 | J115: 68.9 | K115: 13.8024 | L115: 1.4642 | M115: 96.32 | N115: 46.8237 | O115: 466 | P115: =M115*10000/O115 -> 2066.95279 | Q115: =80.25*100/96.32 -> 83.3160299 | R115: 5934 | T115: =T116*1.051 ->  | U115: 199.0217 | V115: 81.76 | X115: 182.5034 | Y115: 172.9972 | Z115: 319.38 | AA115: 0.1082 | AE115: 221234.87 | AF115: 702 | AG115: 0.08 | AH115: 0.88 | AI115: 3.43 | AJ115: 0.37
A116: 温州市瓯海区 | B116: 2019 | C116: 661.12 | D116: 1 | E116: 42.1 | F116: 56.9 | G116: 6.9709 | H116: =C116/N116 -> 14.27177508 | I116: 42.01 | J116: 70.14 | K116: 12.5782 | L116: 1.2694 | M116: 95.37 | N116: 46.3236 | O116: 466 | P116: =M116*10000/O116 -> 2046.566524 | Q116: =83.76*100/95.37 -> 87.82636049 | R116: 6036 | T116: =#REF!*1.101 ->  | U116: 158.1881 | V116: 45.41 | W116: 93.6443 | X116: 39.04 | Y116: 88.3863 | Z116: 337.19 | AA116: 0.8048 | AE116: 253840 | AF116: 664 | AG116: 0.11 | AH116: 1.25 | AI116: 0 | AJ116: 1.28
A117: 温州市洞头区 | B117: 2023 | C117: 150.04 | D117: 5.8 | E117: 34.2 | F117: 60 | G117: =C117/M117 -> 9.508238276 | H117: 9.7787 | I117: 16.42 | J117: 47.65 | M117: 15.78 | N117: 15.32 | O117: 273 | P117: =M117*10000/O117 -> 578.021978 | T117: =T118*0.7 ->  | U117: 10 | V117: 5.8 | Z117: 73.26 | AE117: 18400 | AG117: 0.04 | AH117: 0.23 | AI117: 0 | AJ117: 0
A118: 温州市洞头区 | B118: 2022 | C118: 137.16 | D118: 5.7 | E118: 39.3 | F118: 55 | G118: =C118/M118 -> 8.837628866 | H118: 8.9166 | I118: 17.31 | J118: 48.25 | K118: 5.3885 | L118: 1.8496 | M118: 15.52 | N118: 15.36 | O118: 273 | P118: =M118*10000/O118 -> 568.4981685 | Q118: =8.75*100/15.52 -> 56.37886598 | R118: 1300 | T118: =T119*1.258 ->  | U118: 67.8161 | V118: 31.58 | X118: 45.3816 | Y118: 43.9246 | Z118: 61.38 | AA118: 0.0227 | AE118: 16900 | AF118: 107 | AG118: 0.15 | AH118: 0.22 | AI118: 0.23 | AJ118: 0
A119: 温州市洞头区 | B119: 2021 | C119: 126.07 | D119: 5.7 | E119: 40.6 | F119: 53.7 | G119: 8.43 | H119: 8.173 | I119: 17.49 | J119: 44.12 | K119: 4.7579 | L119: 1.4766 | M119: 15.03 | N119: 15.4 | O119: 273 | P119: =M119*10000/O119 -> 550.5494505 | Q119: =8.16*100/15.03 -> 54.29141717 | R119: 1307 | T119: =T120*1.301 ->  | U119: 78.1012 | V119: 51.48 | X119: 76.7935 | Y119: 74.4534 | Z119: 42.83 | AA119: 0.7269 | AE119: 17318 | AF119: 86 | AG119: 0 | AH119: 0.18 | AI119: 0 | AJ119: 0.14
A120: 温州市洞头区 | B120: 2020 | C120: 114.42 | D120: 5.7 | E120: 41.5 | F120: 52.8 | G120: 7.9181 | H120: 7.3949 | I120: 10.02 | J120: 31.64 | K120: 4.5803 | L120: 1.2624 | M120: 14.88 | N120: 15.45 | O120: 273 | P120: =M120*10000/O120 -> 545.0549451 | Q120: =7.86*100/14.88 -> 52.82258065 | R120: 1260 | T120: =T121*1.154 ->  | U120: 26.5712 | V120: 47.08 | X120: 62.8728 | Y120: 59.2198 | Z120: 36.11 | AA120: 0.3085 | AE120: 16560.47 | AF120: 63 | AG120: 0.05 | AH120: 0.68 | AI120: 0 | AJ120: 0.23
A121: 温州市洞头区 | B121: 2019 | C121: 107.84 | D121: 5.4 | E121: 41.3 | F121: 53.3 | G121: 10.1883 | H121: 6.9655 | I121: 9.7 | J121: 32.74 | K121: 4.4345 | L121: 0.9884 | M121: 10.82 | N121: 15.49 | O121: 254 | P121: =M121*10000/O121 -> 425.984252 | Q121: =5.88*100/10.82 -> 54.34380776 | R121: 1283 | T121: =#REF!*1.118 ->  | U121: 24.6044 | V121: 48.99 | W121: 64.0536 | X121: 44.91 | Y121: 59.3815 | Z121: 39.49 | AA121: 0.0555 | AE121: 14529 | AF121: 47 | AG121: 0.05 | AH121: 0.09 | AI121: 0 | AJ121: 0.09
A122: 温州市瑞安市 | B122: 2023 | C122: 1285.1 | D122: 2.3 | E122: 43.9 | F122: 53.8 | G122: 8.3913 | H122: =C122/N122 -> 10.27258193 | I122: 75.8 | J122: 141.7 | M122: 153.5 | N122: 125.1 | O122: 1342 | P122: =M122*10000/O122 -> 1143.815201 | T122: =T123*1.08 ->  | U122: =U123*0.899 -> 129.2011335 | V122: 62.1 | Z122: 622.2 | AA122: 0.4333 | AE122: 583000 | AF122: 1468 | AG122: 0.08 | AH122: 0.46 | AI122: 1.36 | AJ122: 0.14
A123: 温州市瑞安市 | B123: 2022 | C123: 1197.87 | D123: 2.4 | E123: 45.3 | F123: 52.3 | G123: 7.8446 | H123: =C123/N123 -> 9.552392344 | I123: 66.01 | J123: 138.18 | K123: 34.0547 | L123: 4.7306 | M123: =M122-0.7 -> 152.8 | N123: 125.4 | O123: 1342 | P123: =M123*10000/O123 -> 1138.599106 | Q123: =103.84*100/152.8 -> 67.95811518 | R123: 24196 | S123: 24.2 | T123: =T124*0.963 ->  | U123: 143.7165 | V123: 51.65 | X123: 83.23 | Y123: 73.218 | Z123: 582.92 | AA123: 0.7291 | AE123: 542900 | AF123: 1496 | AG123: 0.11 | AH123: 0.68 | AI123: 1.51 | AJ123: 0.1
A124: 温州市瑞安市 | B124: 2021 | C124: 1148.98 | D124: 2.4 | E124: 46.4 | F124: 51.2 | G124: 7.5442 | H124: =C124/N124 -> 9.145745443 | I124: 84.25 | J124: 120.98 | K124: 30.6997 | L124: 4.0798 | M124: 152.28 | N124: 125.63 | O124: 1342 | P124: =M124*10000/O124 -> 1134.724292 | Q124: =102.53*100/152.58 -> 67.19753572 | R124: 24325 | S124: 23.1 | T124: =T125*1.086 ->  | U124: 192.7902 | V124: 103.44 | X124: 180.7985 | Y124: 142.5277 | Z124: 568.44 | AA124: 0.4741 | AE124: 565625 | AF124: 1387 | AG124: 0.1 | AH124: 0.46 | AI124: 1.66 | AJ124: 0.38
A125: 温州市瑞安市 | B125: 2020 | C125: 1037.09 | D125: 2.5 | E125: 44.8 | F125: 52.7 | G125: 6.8385 | H125: =C125/N125 -> 8.236102287 | I125: 81.91 | J125: 103.7 | K125: 29.0134 | L125: 3.5363 | M125: 152 | N125: 125.92 | O125: 1342 | P125: =M125*10000/O125 -> 1132.637854 | Q125: =101.25*100/152 -> 66.61184211 | R125: 24465 | S125: 23.1 | T125: =T126*1.043 ->  | U125: 185.6939 | V125: 143.33 | X125: 263.8262 | Y125: 248.0306 | Z125: 519.82 | AA125: 0.2442 | AE125: 485415.78 | AF125: 1205 | AG125: 0.06 | AH125: 0.52 | AI125: 2.99 | AJ125: 0.29
A126: 温州市瑞安市 | B126: 2019 | C126: 1003.96 | D126: 2.5 | E126: 45.8 | F126: 51.7 | G126: 6.9985 | H126: =C126/N126 -> 7.979335559 | I126: 79.64 | J126: 139.92 | K126: 26.8235 | L126: 3.0456 | M126: 143.79 | N126: 125.82 | O126: 1350 | P126: =M126*10000/O126 -> 1065.111111 | Q126: =97.49*100/143.79 -> 67.80026427 | R126: 24596 | S126: 23 | T126: =#REF!*1.1 ->  | U126: 189.6763 | V126: 135.05 | W126: 226.9003 | X126: 121.66 | Y126: 209.9067 | Z126: 525.37 | AA126: 1.0137 | AE126: 493346 | AF126: 1021 | AG126: 0.1 | AH126: 0.33 | AI126: 1.84 | AJ126: 0.21
A127: 温州市乐清市 | B127: 2023 | C127: 1663.53 | D127: 1.4 | E127: 44.5 | F127: 54.1 | G127: 11.305 | H127: =C127/N127 -> 12.68611302 | I127: 97.05 | J127: 128.62 | K127: 38.52 | L127: 3.21 | M127: 147.58 | N127: 131.13 | O127: 1396 | P127: =M127*10000/O127 -> 1057.163324 | Q127: 67.9 | T127: =T128*1.049 ->  | U127: =U128*0.945 -> 149.906106 | Z127: 648.25 | AA127: 0.37 | AE127: 475500 | AF127: 2046 | AG127: 0.09 | AH127: 1.32 | AI127: 1.64 | AJ127: 0.15
A128: 温州市乐清市 | B128: 2022 | C128: 1501.95 | D128: 1.5 | E128: 45.6 | F128: 52.9 | G128: 10.2487 | H128: =C128/N128 -> 11.421673 | I128: 83.47 | J128: 131.08 | K128: 35.7699 | L128: 2.785 | M128: 146.72 | N128: 131.5 | O128: 1396 | P128: =M128*10000/O128 -> 1051.002865 | Q128: 66.7 | R128: 19112 | S128: 24.48 | T128: =T129*1.086 ->  | U128: 158.6308 | V128: 101.27 | X128: 157.2523 | Y128: 145.1887 | Z128: 596.62 | AA128: 0.5829 | AE128: 428200 | AF128: 2081 | AG128: 0.09 | AH128: 1.45 | AI128: 2.06 | AJ128: 0.08
A129: 温州市乐清市 | B129: 2021 | C129: 1433.48 | D129: 1.5 | E129: 46.9 | F129: 51.6 | G129: 9.8244 | H129: =C129/N129 -> 10.88691426 | I129: 97.01 | J129: 129.48 | K129: 33.1546 | L129: 2.4187 | M129: 146.4 | N129: 131.67 | O129: 1396 | P129: =M129*10000/O129 -> 1048.710602 | Q129: 65.9 | R129: 19179 | S129: 24.48 | T129: =T130*1.055 ->  | U129: 165.9114 | V129: 135.45 | X129: 191.0679 | Y129: 169.7336 | Z129: 580.91 | AA129: 1.2795 | AE129: 447417 | AF129: 1869 | AG129: 0.11 | AH129: 1.05 | AI129: 1.96 | AJ129: 0.33
A130: 温州市乐清市 | B130: 2020 | C130: 1263.01 | D130: 1.7 | E130: 46.9 | F130: 51.5 | G130: 8.6709 | H130: 9.5934 | I130: 94.38 | J130: 126.38 | K130: 30.8338 | L130: 2.0975 | M130: =M129-0.98 -> 145.42 | N130: 131.82 | O130: 1396 | P130: =M130*10000/O130 -> 1041.690544 | Q130: =Q129-0.53 -> 65.37 | R130: 19130 | S130: 24.48 | T130: =T131*1.04 ->  | U130: 164.055 | V130: 178.63 | X130: 216.2154 | Y130: 202.313 | Z130: 520.13 | AA130: 0.2345 | AE130: 381706.19 | AF130: 1572 | AG130: 0.08 | AH130: 3.99 | AI130: 1.31 | AJ130: 0
A131: 温州市乐清市 | B131: 2019 | C131: 1209.93 | D131: 1.7 | E131: 46.1 | F131: 52.2 | G131: 8.4848 | H131: =C131/N131 -> 9.201688341 | I131: 99.69 | J131: 155.38 | K131: 28.4797 | L131: 1.821 | M131: 142.85 | N131: 131.49 | O131: 1391 | P131: =M131*10000/O131 -> 1026.959022 | Q131: 57.61 | R131: 19223 | S131: 23.31 | T131: =#REF!*1.101 ->  | U131: 156.0757 | V131: 162.2 | W131: 200.6395 | X131: 134.03 | Y131: 1528.9113 | Z131: 535.41 | AA131: 0.5265 | AE131: 362960 | AF131: 1348 | AG131: 0.08 | AH131: 0.32 | AI131: 0.14 | AJ131: 0.07
A132: 温州市龙港市 | B132: 2023 | C132: 409.49 | D132: 2.4 | E132: 42.3 | F132: 55.3 | G132: 8.7034 | H132: =C132/N132 -> 10.71122155 | I132: 20.47 | J132: 39.23 | K132: =K133*1.062 -> 10.6236108 | L132: =L133*1.15 -> 0.59938 | M132: 47.16 | N132: 38.23 | O132: 160 | P132: =M132*10000/O132 -> 2947.5 | Q132: 98.2 | T132: =T133*1.306 ->  | U132: =U133*1.017 -> 57.1992327 | V132: 39.89 | Z132: 167.34 | AE132: 244400 | AG132: 0.1 | AH132: 0.16 | AI132: 1.03 | AJ132: 0.11
A133: 温州市龙港市 | B133: 2022 | C133: 370.14 | D133: 2.6 | E133: 44.7 | F133: 52.7 | G133: 7.9005 | H133: =C133/N133 -> 9.656665797 | I133: 22.91 | J133: 38.01 | K133: 10.0034 | L133: 0.5212 | M133: 46.94 | N133: 38.33 | O133: 160 | P133: =M133*10000/O133 -> 2933.75 | Q133: 97.98 | S133: 25.83 | T133: =T134*1.152 ->  | U133: 56.2431 | V133: 36.19 | X133: 48.6571 | Y133: 48.218 | Z133: 154.44 | AA133: 0.4771 | AE133: 211700 | AF133: 421 | AG133: 0.07 | AH133: 0 | AI133: 1.09 | AJ133: 0.09
A134: 温州市龙港市 | B134: 2021 | C134: 340.34 | D134: 2.8 | E134: 46.7 | F134: 50.5 | G134: 7.3002 | H134: =C134/N134 -> 8.893127776 | I134: 20.03 | J134: 32.28 | K134: 8.268 | L134: 0.4534 | M134: 46.77 | N134: 38.27 | O134: 160 | P134: =M134*10000/O134 -> 2923.125 | Q134: 97.2 | S134: 23.86 | T134: =T135*1.115 ->  | U134: 53.1853 | V134: 34.4 | X134: 45.1904 | Y134: 42.7648 | Z134: 145.68 | AA134: 0.1549 | AE134: 204820 | AF134: 388 | AG134: 0.06 | AH134: 0.19 | AI134: 1.42 | AJ134: 0
A135: 温州市龙港市 | B135: 2020 | C135: 316.4 | D135: 2.9 | E135: 45.7 | F135: 51.4 | G135: 6.8191 | H135: =C135/N135 -> 8.280554829 | I135: 17.05 | J135: 25.77 | K135: 7.2026 | L135: 0.3665 | M135: =M134-0.3 -> 46.47 | N135: 38.21 | O135: 160 | P135: =M135*10000/O135 -> 2904.375 | Q135: =Q134-0.3 -> 96.9 | S135: 20.24 | T135: =#REF!*1.001 ->  | U135: 61.068 | V135: 81.03 | X135: 74.7374 | Y135: 73.2927 | Z135: 138.26 | AA135: 0.0729 | AE135: 170683.68 | AF135: 314 | AG135: 0.07 | AH135: 0 | AI135: 1.46 | AJ135: 0.09
A136: 温州市永嘉县 | B136: 2023 | C136: 564.45 | D136: 3.3 | E136: 45.5 | F136: 51.2 | G136: =C136/M136 -> 6.40692395 | H136: 5.7606 | I136: 40.87 | J136: 101.05 | K136: 25.54 | L136: 4.03 | M136: 88.1 | N136: 97.99 | O136: 2677 | P136: =M136*10000/O136 -> 329.0997385 | Q136: 59.5 | T136: =T137*1.124 ->  | U136: =U137*1.021 -> 106.8991084 | V136: 32.4 | Z136: 281.75 | AA136: 0.2449 | AF136: 625 | AG136: 0.08 | AH136: 0.28 | AI136: 1.3 | AJ136: 0
A137: 温州市永嘉县 | B137: 2022 | C137: 516.68 | D137: 3.7 | E137: 44.3 | F137: 52 | G137: =C137/M137 -> 5.911670481 | H137: 5.2433 | I137: 35.76 | J137: 99.23 | K137: 23.6885 | L137: 3.4744 | M137: 87.4 | N137: 98.39 | O137: 2677 | P137: =M137*10000/O137 -> 326.4848711 | Q137: 58 | R137: 24561 | S137: 10.84 | T137: =T138*1.094 ->  | U137: 104.7004 | V137: 30.08 | X137: 51.2732 | Y137: 39.2413 | Z137: 260 | AA137: 0.2255 | AE137: 199969 | AF137: 653 | AG137: 0.08 | AH137: 1.43 | AI137: 0.97 | AJ137: 0.14
A138: 温州市永嘉县 | B138: 2021 | C138: 486.34 | D138: 3.8 | E138: 42.8 | F138: 53.4 | G138: 5.5918 | H138: 4.9244 | I138: 41.34 | J138: 89.96 | K138: 21.0938 | L138: 2.9549 | M138: 87 | N138: 98.69 | O138: 2677 | P138: =M138*10000/O138 -> 324.9906612 | Q138: =Q137-1.5 -> 56.5 | R138: 24694 | S138: 10.84 | T138: =T139*1.08 ->  | U138: 95.7396 | V138: 36.6 | X138: 75.2982 | Y138: 73.943 | Z138: 252.4 | AA138: 0.042 | AE138: 200040 | AF138: 575 | AG138: 0.08 | AH138: 0.14 | AI138: 1.3 | AJ138: 0
A139: 温州市永嘉县 | B139: 2020 | C139: 461.89 | D139: 3.7 | E139: 42.3 | F139: 53.9 | G139: 5.3161 | H139: 4.6745 | I139: 40.8 | J139: 111.07 | K139: 24.2473 | L139: 2.5681 | M139: 86.95 | N139: 98.83 | O139: 2677 | P139: =M139*10000/O139 -> 324.8038849 | Q139: =48.29*100/86.95 -> 55.53766532 | R139: 24864 | S139: 10.84 | T139: =T140*1.042 ->  | U139: 78.3963 | V139: 117.2 | X139: 199.2661 | Y139: 183.3187 | Z139: 247.82 | AA139: 0.2501 | AE139: 175395.89 | AF139: 495 | AG139: 0.07 | AH139: 0.77 | AI139: 1.93 | AJ139: 0.09
A140: 温州市永嘉县 | B140: 2019 | C140: 444.52 | D140: 3.6 | E140: 43.6 | F140: 52.7 | G140: 5.3473 | H140: 4.5092 | I140: 39.53 | J140: 109.23 | K140: 23.2257 | L140: 1.9862 | M140: 83.32 | N140: 98.79 | O140: 2677 | P140: =M140*10000/O140 -> 311.2439298 | Q140: 65.1 | R140: 25056 | S140: 10.84 | T140: =#REF!*1.101 ->  | U140: 101.0118 | V140: 122.49 | W140: 154.7018 | X140: 90.73 | Y140: 123.713 | Z140: 216.69 | AA140: 0.3604 | AE140: 182504 | AF140: 471 | AG140: 0.06 | AH140: 1.82 | AI140: 1.7 | AJ140: 1.71
A141: 温州市平阳县 | B141: 2023 | C141: 711.81 | D141: 3.3 | E141: 47.2 | F141: 49.5 | G141: 8.1959 | H141: =C141/N141 -> 8.162958716 | I141: 40.03 | J141: 97.71 | K141: 21.4 | M141: 87.1 | N141: 87.2 | O141: 1036 | P141: =M141*10000/O141 -> 840.7335907 | Q141: 65.2 | T141: =T142*1.152 ->  | U141: =U142*0.911 -> 91.9301943 | V141: 63.87 | Z141: 301.64 | AA141: 0.2174 | AE141: 302300 | AG141: 0.07 | AH141: 0.17 | AI141: 0.46 | AJ141: 0.53
A142: 温州市平阳县 | B142: 2022 | C142: 646.48 | D142: 3.6 | E142: 48.9 | F142: 47.5 | G142: 7.4621 | H142: =C142/N142 -> 7.379908676 | I142: 36.74 | J142: 90.63 | K142: 19.7962 | L142: 1.771 | M142: 86.64 | N142: 87.6 | O142: 1036 | P142: =M142*10000/O142 -> 836.2934363 | Q142: 63.8 | R142: 19478 | S142: 11.67 | T142: =T143*1.173 ->  | U142: 100.9113 | V142: 75.97 | X142: 82.9669 | Y142: 82.1882 | Z142: 278.91 | AA142: 0.0362 | AE142: 266700 | AF142: 783 | AG142: 0.07 | AH142: 0.19 | AI142: 0.79 | AJ142: 0.12
A143: 温州市平阳县 | B143: 2021 | C143: 600.51 | D143: 3.7 | E143: 48.3 | F143: 48 | G143: 6.9459 | H143: =C143/N143 -> 6.834073062 | I143: 42 | J143: 93.98 | K143: 17.7503 | L143: 1.5255 | M143: 86.59 | N143: 87.87 | O143: 1036 | P143: =M143*10000/O143 -> 835.8108108 | Q143: 62.26 | R143: 19615 | S143: 11.67 | T143: =T144*1.112 ->  | U143: 82.1136 | V143: 104.45 | X143: 103.8816 | Y143: 97.5366 | Z143: 266.11 | AA143: 0.2809 | AE143: 276376 | AF143: 692 | AG143: 0.06 | AH143: 0.3 | AI143: 0.79 | AJ143: 0.08
A144: 温州市平阳县 | B144: 2020 | C144: 534.51 | D144: 3.9 | E144: 46.3 | F144: 49.8 | G144: 6.2142 | H144: =C144/N144 -> 6.053340883 | I144: 36.49 | J144: 91.75 | K144: 16.3517 | L144: 1.3239 | M144: 86.32 | N144: 88.3 | O144: 1036 | P144: =M144*10000/O144 -> 833.2046332 | Q144: 61.7 | R144: 18964 | S144: 11.67 | T144: =T145*1.04 ->  | U144: 50.0751 | V144: 173.67 | X144: 140.0345 | Y144: 107.7736 | Z144: 233.23 | AA144: 1.0326 | AE144: 247121.61 | AF144: 576 | AG144: 0.07 | AH144: 1.41 | AI144: 0.81 | AJ144: 0.1
A145: 温州市平阳县 | B145: 2019 | C145: 510.29 | D145: 3.6 | E145: 44.8 | F145: 51.5 | G145: 6.3259 | H145: =C145/N145 -> 5.769248163 | I145: 38.03 | J145: 90.88 | K145: 16.0719 | L145: 1.1508 | M145: 80.38 | N145: 88.45 | O145: 1042 | P145: =M145*10000/O145 -> 771.4011516 | Q145: 58.4 | R145: 19319 | S145: 11.46 | T145: =#REF!*1.101 ->  | U145: 52.6778 | V145: 226.51 | W145: 173.8888 | X145: 129.34 | Y145: 142.4697 | Z145: 239.01 | AA145: 0.4104 | AE145: 239490 | AF145: 503 | AG145: 0.06 | AH145: 1.15 | AI145: 0.61 | AJ145: 0.22
A146: 温州市苍南县 | B146: 2023 | C146: 471.92 | G146: =C146/M146 -> 5.561814968 | I146: 32.79 | J146: 100.7971 | K146: 22.05 | M146: 84.85 | O146: 1079.33 | P146: =M146*10000/O146 -> 786.1358435 | Q146: 71.5 | T146: 273.36 | Z146: 288.91 | AD146: =C146*0.0146 -> 6.890032 | AG146: 0.08 | AH146: 0.14 | AI146: 1.15 | AJ146: 0.2
A147: 温州市苍南县 | B147: 2022 | C147: 427.56 | D147: 7.3 | E147: 38.1 | F147: 54.6 | G147: 5.0509 | H147: =C147/N147 -> 4.477068063 | I147: 30.27 | J147: 89.32 | K147: 20.3131 | L147: 1.2236 | M147: 84.72 | N147: 95.5 | O147: 1079.33 | P147: =M147*10000/O147 -> 784.9313926 | Q147: 70.2 | R147: 16630 | S147: 18.68 | T147: =T148*1.361 -> 242.20356 | U147: 43.5785 | V147: 40.96 | X147: 53.8157 | Y147: 53.0676 | Z147: 268 | AA147: 0.5168 | AE147: 237400 | AF147: 442 | AG147: 0.09 | AH147: 0.26 | AI147: 1.21 | AJ147: 0.23
A148: 温州市苍南县 | B148: 2021 | C148: 399.62 | D148: 7.3 | E148: 37.8 | F148: 54.9 | G148: 4.7298 | H148: =C148/N148 -> 4.161841283 | I148: 30.18 | J148: 85.3758 | K148: 19.601 | L148: 1.0634 | M148: 84.58 | N148: 96.02 | O148: 1079.33 | P148: =M148*10000/O148 -> 783.6342916 | Q148: 68.7 | R148: 16836 | S148: 18.2 | T148: 177.96 | U148: 35.1914 | V148: 40.5 | X148: 58.6147 | Y148: 53.7594 | Z148: 254.02 | AA148: 1.0059 | AE148: 234886 | AF148: 387 | AG148: 0.05 | AH148: 1.73 | AI148: 1.83 | AJ148: 0.09
A149: 温州市苍南县 | B149: 2020 | C149: 363.09 | D149: 7.7 | E149: 35.2 | F149: 57.1 | G149: 4.3084 | H149: =C149/N149 -> 3.757528718 | I149: 26.35 | J149: 78.33 | K149: 18.759 | L149: 0.9207 | M149: 84.4 | N149: 96.63 | O149: 1079.33 | P149: =M149*10000/O149 -> 781.9665904 | Q149: =57.52*100/84.4 -> 68.15165877 | R149: 17028 | S149: 16.99 | T149: =T148/1.256 -> 141.6878981 | U149: 28.183 | V149: 36.88 | X149: 48.9566 | Y149: 46.8601 | Z149: 244.21 | AA149: 0.2033 | AE149: 201652.23 | AF149: 333 | AG149: 0.07 | AH149: 1.53 | AI149: 1.13 | AJ149: 0.17
A150: 温州市苍南县 | B150: 2019 | C150: 652.21 | D150: 5.4 | E150: 41.1 | F150: 53.5 | G150: 5.228 | H150: =C150/N150 -> 4.830111827 | I150: 42.46 | J150: 113.75 | K150: 24.8808 | L150: 1.1632 | M150: =38.87+85.42 -> 124.29 | N150: 135.03 | O150: 1252.9 | P150: =M150*10000/O150 -> 992.018517 | Q150: 63.94 | R150: 22409 | S150: 16.58 | T150: =#REF!*1.1 ->  | U150: 107.0179 | V150: 113.2 | W150: 141.6048 | X150: 107.67 | Y150: 136.058 | Z150: 395.94 | AA150: 0.3428 | AE150: 383270 | AF150: 570 | AG150: 0.05 | AH150: 0.91 | AI150: 0.84 | AJ150: 0.46
A151: 温州市文成县 | B151: 2023 | C151: 136.81 | D151: 7.8 | E151: 24.7 | F151: 67.5 | G151: =C151/M151 -> 4.682067077 | H151: =C151/N151 -> 3.398161947 | I151: 11.47 | J151: 53.98 | K151: 9.107921 | L151: 0.845 | M151: 29.22 | N151: 40.26 | O151: 1296 | P151: =M151*10000/O151 -> 225.462963 | Q151: 47.7 | T151: =T152*1.1 -> 78.685332 | U151: =U152*0.822 -> 14.9584272 | V151: 12.03 | X151: 9.31 | Z151: 62.1 | AE151: 22200 | AG151: 0.03 | AH151: 0 | AI151: 0 | AJ151: 0.04
A152: 温州市文成县 | B152: 2022 | C152: 126.55 | D152: 8.5 | E152: 25.8 | F152: 65.7 | G152: =C152/M152 -> 4.3592835 | H152: =C152/N152 -> 3.132425743 | I152: 10.77 | J152: 50.59 | K152: 8.67 | L152: 0.7345 | M152: 29.03 | N152: 40.4 | O152: 1296 | P152: =M152*10000/O152 -> 223.9969136 | Q152: 46.1 | R152: 14351 | S152: 5.1 | T152: =T153*1.153 -> 71.53212 | U152: 18.1976 | V152: 10.46 | W152: 10.2404 | X152: 5.41 | Y152: 5.5681 | Z152: 51.82 | AA152: 0.1731 | AE152: 19700 | AF152: 60 | AG152: 0.03 | AH152: 0 | AI152: 0.75 | AJ152: 0.12
A153: 温州市文成县 | B153: 2021 | C153: 116.52 | D153: 8.4 | E153: 26.3 | F153: 65.3 | G153: 4.041 | H153: =C153/N153 -> 2.865011065 | I153: 11.75 | J153: 53.8 | K153: 8.5924 | L153: 0.6383 | M153: 28.85 | N153: 40.67 | O153: 1296 | P153: =M153*10000/O153 -> 222.6080247 | Q153: 44.3 | R153: 14418 | S153: 5.1 | T153: 62.04 | U153: 18.0572 | V153: 8.5 | W153: 10.4304 | X153: 5.65 | Y153: 7.2778 | Z153: 50.71 | AE153: 18725 | AF153: 54 | AG153: 0.02 | AH153: 0.57 | AI153: 0.51 | AJ153: 0.1
A154: 温州市文成县 | B154: 2020 | C154: 112.01 | D154: 8.7 | E154: 25.3 | F154: 66 | G154: 3.9262 | H154: =C154/N154 -> 2.735286935 | I154: 10.22 | J154: 51.03 | K154: 8.581 | L154: 0.5548 | M154: 28.82 | N154: 40.95 | O154: 1296 | P154: =M154*10000/O154 -> 222.3765432 | Q154: =12.51*100/28.82 -> 43.407356 | R154: 14336 | S154: 5.1 | T154: 54.86 | U154: 16.9747 | V154: 15.11 | W154: 188.8532 | X154: 11.6 | Y154: 46.0428 | Z154: 48.67 | AA154: 0.0221 | AE154: 15155.88 | AF154: 43 | AG154: 0.02 | AH154: 0.19 | AI154: 0 | AJ154: 0.06
A155: 温州市文成县 | B155: 2019 | C155: 104.91 | D155: 8.9 | E155: 23.2 | F155: 67.9 | G155: 4.2829 | H155: =C155/N155 -> 2.553797468 | I155: 9.63 | J155: 56.14 | K155: 8.1259 | L155: 0.4809 | M155: 24.57 | N155: 41.08 | O155: 1296 | P155: =M155*10000/O155 -> 189.5833333 | Q155: 49.6 | R155: 14384 | S155: 5.1 | T155: 48.9 | U155: 5.7545 | V155: 18.07 | W155: 24.9436 | X155: 15.99 | Y155: 23.4254 | Z155: 50.63 | AA155: 0.0621 | AE155: 15416 | AF155: 36 | AG155: 0.02 | AH155: 0.04 | AI155: 0 | AJ155: 0.11
A156: 温州市泰顺县 | B156: 2023 | C156: 157.6 | D156: 7 | E156: 38.1 | F156: 54.9 | G156: 5.8695 | H156: =C156/N156 -> 4.31426225 | I156: 16.02 | J156: 61.57 | K156: 8.11 | L156: 0.5554 | M156: 26.94 | N156: 36.53 | O156: 1768 | P156: =M156*10000/O156 -> 152.3755656 | Q156: 49.2 | T156: =T157*1.154 ->  | U156: 16.28 | V156: 12.25 | X156: 11.88 | Z156: 71.87 | AE156: 28200 | AF156: 55 | AG156: 0.05 | AH156: 0.06 | AI156: 0.58 | AJ156: 0.04
A157: 温州市泰顺县 | B157: 2022 | C157: 143.98 | D157: 7.8 | E157: 36.3 | F157: 55.8 | G157: 5.3927 | H157: =C157/N157 -> 3.913563468 | I157: 15.1 | J157: 59.73 | K157: 7.9582 | L157: 0.4827 | M157: 26.78 | N157: 36.79 | O157: 1768 | P157: =M157*10000/O157 -> 151.4705882 | Q157: 47.6 | R157: 17634 | S157: 8.9 | T157: =T158*1.188 ->  | U157: 14.897 | V157: 19.31 | W157: 17.2756 | X157: 13.76 | Y157: 14.6979 | Z157: 66.19 | AA157: 0.029 | AE157: 24800 | AF157: 56 | AG157: 0.04 | AH157: 0.13 | AI157: 0.74 | AJ157: 0.06
A158: 温州市泰顺县 | B158: 2021 | C158: 132.41 | D158: 8.1 | E158: 34.8 | F158: 57.1 | G158: 4.9739 | H158: 3.5708 | I158: 15.88 | J158: 56.65 | K158: 7.9061 | L158: 0.4147 | M158: 26.64 | N158: 36.97 | O158: 1768 | P158: =M158*10000/O158 -> 150.678733 | Q158: =12.2*100/26.64 -> 45.7957958 | R158: 17669 | S158: 11.85 | T158: =T159*1.024 ->  | U158: 12.8504 | V158: 20.58 | W158: 19.7322 | X158: 16.14 | Y158: 17.9691 | Z158: 64.5 | AA158: 0.022 | AE158: 22639 | AF158: 44 | AG158: 0.04 | AH158: 0.07 | AI158: 1.63 | AJ158: 0.04
A159: 温州市泰顺县 | B159: 2020 | C159: 121.99 | D159: 8.3 | E159: 34.1 | F159: 57.6 | G159: 4.6008 | H159: 3.2757 | I159: 13.8 | J159: 48.86 | K159: 7.7894 | L159: 0.354 | M159: 26.6 | N159: 37.19 | O159: 1769 | P159: =M159*10000/O159 -> 150.3674392 | Q159: =11.92*100/26.6 -> 44.81203008 | R159: 17786 | S159: 11.85 | T159: =T160*1.09 ->  | U159: 11.0382 | V159: 19.91 | W159: 20.0089 | X159: 17.8 | Y159: 19.1305 | Z159: 54.99 | AA159: 0.002 | AE159: 18661.49 | AF159: 32 | AG159: 0.04 | AH159: 1.93 | AI159: 0.54 | AJ159: 0.08
A160: 温州市泰顺县 | B160: 2019 | C160: 110.6 | D160: 8.6 | E160: 33.5 | F160: 57.9 | G160: 4.3236 | H160: 2.9633 | I160: 10.1 | J160: 55.55 | K160: 7.2678 | L160: 0.3075 | M160: 25.59 | N160: 37.3 | O160: 1768 | P160: =M160*10000/O160 -> 144.739819 | Q160: 50.49 | R160: 17900 | S160: 11.85 | T160: =#REF!*1.12 ->  | U160: 9.8885 | V160: 12.21 | W160: 11.4118 | X160: 10.16 | Y160: 9.9006 | Z160: 55.27 | AA160: 0.0717 | AE160: 15201 | AF160: 25 | AG160: 0.03 | AH160: 0 | AI160: 0 | AJ160: 0.02
